Cogmind - Beta 15 @@@ ROGUE MODE // 2025.07.05 @ 19:20:04 Player: McSaucyNugget Result: Heading to fleet! Performance ------------- Evolutions (9) 4500 Regions Visited (34) 6800 Robots Destroyed (228) 1140 Value Destroyed (7978) 7978 Prototype IDs (363) 7260 Alien Tech Used (13) 2600 Bonus (33294) 33294 TOTAL SCORE: 63572 Bonus ------- High Alert Combat Kills 303 Follower Combat Kills 3453 Entered Garrisons 400 Used RIF Installer 500 Network Hubs Disabled 200 Acquired ECA 300 Met Zhirov 300 Built Enhanced Grunts 300 Met R17 at Cetus 500 Read Decrypted Archives 300 Used Core Reset Matrix 3000 Destroyed MAIN.C Guards 500 Met MAIN.C 5000 Destroyed MAIN.C Shell 5000 Destroyed MAIN.C 10000 Met Architect 300 Win 3000 Friendly Fire -62 Cogmind --------- Core Integrity 659/1600 Matter 215/300 Energy 289/290 System Corruption 0% Temperature Cool (3) +ITN Movement Flying (35) Location To Fleet Rendezvous Parts ------- > --- POWER (3) -------- Micro Antimatter Reactor Zero-point Reactor > --- PROPULSION (8) --- Cooled Nuclear Pulse Thruster Impulse Thruster Array Impulse Thruster Array > --- UTILITY (11) ----- Advanced Quantum Shading Machine Advanced Melee Analysis Suite Experimental Melee Analysis Suite Experimental Core Analyzer Experimental Core Analyzer Experimental Core Analyzer Femtoactuators Centrium Medium Armor Plating Experimental Powered Armor > --- WEAPON (4) ------- Lance Plasma Lance Plasma Lance > --- INVENTORY (9) ---- Micro Antimatter Reactor Advanced Surge Thruster Electron Diverter Impulse Thruster Array Improved Q-thruster Advanced Phase Shifter Peak State ------------ > --- POWER ------------ Singularity Reactor > --- PROPULSION ------- Advanced Medium Treads Advanced Medium Treads Armored Heavy Treads Armored Heavy Treads Armored Heavy Treads > --- UTILITY ---------- Medium Storage Unit Experimental Core Analyzer Centrium Heavy Armor Plating Centrium Heavy Armor Plating AEGIS Remote Shield Spacefold Activator Microwarp Drive > --- WEAPON ----------- High-powered Disruptor Cannon Omega Cannon > --- INVENTORY -------- Reinforced Antimatter Reactor Reinforced Antimatter Reactor Micro Antimatter Reactor Light Quantum Reactor Advanced Medium Treads Power Amplifier Experimental Matter Compressor Advanced Quantum Shading Machine Centrium Medium Armor Plating Experimental Powered Armor Transdimensional Reconstructor Sigix Shearcannon [Rating: 269] Favorites ----------- Power Light Nuclear Core Engine Makeshift Power Source Power Core Light Nuclear Core Reactor Zero-point Reactor Propulsion Improved Flight Unit Treads Light Treads Wheel Wheel Hover Unit Combat Antigrav System Flight Unit Improved Flight Unit Utility Hacking Suite Device Improved Heat Sink Storage Huge Storage Unit Processor Experimental Core Analyzer Hackware Hacking Suite Protection Centrium Heavy Armor Plating Artifact Microwarp Drive Weapon Gauss Cannon Energy Gun Heavy Quantum Rifle Energy Cannon Enhanced Nova Cannon Ballistic Gun Light Assault Rifle Ballistic Cannon Gauss Cannon Launcher Mini Grenade Launcher Special Weapon Improved Remote Datajack Impact Weapon Power Maul Slashing Weapon Sigix Broadsword Piercing Weapon Plasma Lance Build | -11 -10 -10 -9 -9 -9 -8 -8 -8 -8 -7 -7 -7 -7 -6 -6 -6 -5 -5 -5 -5 -4 -4 -4 -4 -4 -4 -3 -3 -2 -2 -2 -1 -1 -1 ------- Run | Yrd Mat Min Mat Min Exi Min Mat Sto Gar Fac Low Low Zio Pro Fac Gar Fac Upp Upp Zhi Pro Fac Ext Cet Arc Hub Res Qua Res Tes Sec Acc Com Ac0 Slots Evolved 18 | . . . 2 . . . 2 . . 2 . . . . 2 . 2 . . . . 2 . . . . 2 . 2 . . 2 . . Power 2 | . . . . . . . . . . . . . . . . . 1 . . . . . . . . . . . . . . 1 . . Propulsion 6 | . . . 1 . . . 1 . . 1 . . . . . . 1 . . . . . . . . . 1 . 1 . . . . . Utility 9 | . . . 1 . . . 1 . . 1 . . . . 2 . . . . . . 2 . . . . 1 . 1 . . . . . Weapon 1 | . . . . . . . . . . . . . . . . . . . . . . . . . . . . . . . . 1 . . Parts Attached 321 | 8 3 2 23 2 2 4 26 15 10 12 . 3 2 . 7 4 12 1 1 2 2 7 10 7 1 . 7 19 16 10 3 12 87 1 Power 33 | 1 . . 2 . 1 . 2 2 2 . . . . . . . 2 . . . . . 3 1 . . . 3 . . 1 3 10 . Engine 4 | 1 . . . . 1 . . 2 . . . . . . . . . . . . . . . . . . . . . . . . . . Core 10 | . . . 2 . . . 2 . 2 . . . . . . . 2 . . . . . 2 . . . . . . . . . . . Reactor 19 | . . . . . . . . . . . . . . . . . . . . . . . 1 1 . . . 3 . . 1 3 10 . Propulsion 89 | 4 . . 9 1 1 1 8 5 2 4 . . . . 1 3 3 . . . 1 1 3 2 . . 4 4 2 4 . 2 24 . Treads 21 | 2 . . 3 . 1 . 4 1 1 . . . . . . . . . . . . . . . . . . . . . . . 9 . Leg . | . . . . . . . . . . . . . . . . . . . . . . . . . . . . . . . . . . . Wheel 17 | 2 . . 4 1 . 1 4 4 1 . . . . . . . . . . . . . . . . . . . . . . . . . Hover 4 | . . . 1 . . . . . . . . . . . . . . . . . . . . . . . 3 . . . . . . . Flight 47 | . . . 1 . . . . . . 4 . . . . 1 3 3 . . . 1 1 3 2 . . 1 4 2 4 . 2 15 . Utility 125 | 1 2 1 5 . . 1 8 1 4 7 . . 1 . 4 1 4 1 1 1 1 4 1 3 1 . 1 10 13 5 2 6 35 . Device 52 | . 1 1 1 . . 1 3 . 2 2 . . 1 . 2 . 2 1 . . . 2 . . . . 1 3 8 3 . 3 15 . Storage 8 | 1 1 . 2 . . . . . . . . . . . . . . . . . . . . . . . . . . 1 . . 3 . Processor 13 | . . . . . . . . . . 2 . . . . . . . . . . . 1 . . . . . 2 . . . 1 7 . Hackware 19 | . . . . . . . . . . 2 . . . . 2 . 1 . 1 1 . 1 . 1 1 . . 3 3 1 . 1 1 . Protection 30 | . . . 2 . . . 5 1 2 1 . . . . . 1 1 . . . 1 . 1 2 . . . 1 2 . . 1 9 . Artifact 3 | . . . . . . . . . . . . . . . . . . . . . . . . . . . . 1 . . 2 . . . Weapon 74 | 2 1 1 7 1 . 2 8 7 2 1 . 3 1 . 2 . 3 . . 1 . 2 3 1 . . 2 2 1 1 . 1 18 1 Energy Gun 17 | 1 1 . 4 1 . 1 2 1 . . . 1 . . . . . . . . . . . 1 . . . . . 1 . . 3 . Energy Cannon 10 | . . . . . . 1 . 1 . . . . . . . . . . . . . . . . . . 1 . 1 . . . 6 . Ballistic Gun 12 | 1 . 1 2 . . . 3 3 . . . . . . . . . . . . . . . . . . 1 . . . . . 1 . Ballistic Cannon 12 | . . . . . . . 2 . 2 . . 1 . . 2 . 2 . . . . . . . . . . . . . . . 3 . Launcher 4 | . . . 1 . . . . 1 . . . 1 . . . . . . . . . . 1 . . . . . . . . . . . Special Weapon 4 | . . . . . . . . . . . . . . . . . . . . 1 . 1 1 . . . . 1 . . . . . . Impact Weapon 4 | . . . . . . . 1 1 . . . . . . . . 1 . . . . 1 . . . . . . . . . . . . Slashing Weapon 6 | . . . . . . . . . . 1 . . 1 . . . . . . . . . 1 . . . . 1 . . . . 1 1 Piercing Weapon 5 | . . . . . . . . . . . . . . . . . . . . . . . . . . . . . . . . 1 4 . Special Melee Weapon . | . . . . . . . . . . . . . . . . . . . . . . . . . . . . . . . . . . . Unidentified Prototypes 22 | . . . 2 . . . . 3 . . . 1 . . . . . . . 1 . . . 1 . . 2 3 1 4 . 2 2 . Corrupted Parts 2 | . . . . . . . 1 . . 1 . . . . . . . . . . . . . . . . . . . . . . . . System Corruption 3 | . . . . . . . 2 . . 1 . . . . . . . . . . . . . . . . . . . . . . . . Parts Lost 70 | . 1 1 6 . . 3 11 8 6 . . . . . . 4 2 . . . . 1 2 2 2 . 2 3 . . 2 . 7 7 Power 15 | . . . . . . . 3 1 . . . . . . . 2 . . . . . 1 1 . . . 2 1 . . 1 . 2 1 Propulsion 29 | . . . 3 . . 1 6 5 2 . . . . . . 1 1 . . . . . 1 2 2 . . 1 . . . . 1 3 Utility 15 | . . . 1 . . 1 1 2 2 . . . . . . 1 1 . . . . . . . . . . 1 . . 1 . 2 2 Weapon 11 | . 1 1 2 . . 1 1 . 2 . . . . . . . . . . . . . . . . . . . . . . . 2 1 Highest Loss Streak 7 | . 1 1 2 . . 3 7 5 3 . . . . . . 4 2 . . . . 1 1 1 2 . 1 2 . . 1 . 4 4 To Critical Strikes 1 | . . . . . . . . . 1 . . . . . . . . . . . . . . . . . . . . . . . . . Average Backups 12 | 2 5 13 20 25 25 24 24 23 23 5 5 5 5 5 4 4 4 4 4 5 5 4 4 5 5 5 5 4 3 6 8 11 7 7 Power 1 | . 1 2 2 2 2 2 1 1 2 1 1 1 1 1 1 . . . . . . . . 1 1 1 . . . 1 1 1 . 1 Propulsion 3 | 1 2 3 5 9 10 10 8 7 7 1 1 . 1 1 1 . . . . . . . . . 1 . . . . 2 2 . 2 4 Utility 3 | . 1 5 5 6 6 5 7 7 8 2 3 3 3 3 1 1 2 2 2 2 2 1 . . 1 1 . 1 . . 2 3 2 1 Weapon 2 | . 1 2 6 6 6 5 5 5 4 . . . . . . 1 2 2 2 2 2 1 1 1 1 1 1 1 2 2 2 3 1 . Tool/Special . | . . . . . . . . . . . . . . . . . . . . . . . . . . . . . . . . . . . Unused Backups 66 | . . . 19 . . 1 8 1 3 10 . . 1 . . . 2 . . 1 . 2 1 . . . . 2 . . 3 1 8 3 Power 7 | . . . 4 . . . . . . 1 . . . . . . . . . . . . 1 . . . . . . . . . 1 . Propulsion 12 | . . . 5 . . 1 . . . 1 . . . . . . . . . . . . . . . . . . . . 2 . 1 2 Utility 24 | . . . 3 . . . 4 . 3 4 . . 1 . . . 1 . . 1 . 1 . . . . . . . . . 1 4 1 Weapon 21 | . . . 7 . . . 4 1 . 2 . . . . . . 1 . . . . 1 . . . . . 2 . . 1 . 2 . Tool/Special 2 | . . . . . . . . . . 2 . . . . . . . . . . . . . . . . . . . . . . . . Average Slot Usage (%) 81 | . 89 100 93 100 100 96 97 91 95 98 100 97 100 100 98 83 89 82 83 80 86 88 86 87 90 80 83 82 84 84 77 66 56 81 Engine 1 | . 14 14 . . 3 11 1 1 1 . . . . . . . . . . . . . . . . . . . . . . . . . Core 4 | . . . 10 11 7 . 7 7 7 7 7 7 7 7 6 5 7 11 11 11 11 9 9 5 5 5 4 . . . . . . . Reactor 2 | . . . . . . . . . . . . . . . . . . . . . . . . 4 5 5 3 7 8 8 6 6 4 10 Treads 8 | . 23 . 13 11 11 11 17 17 16 . . . . . . . . . . . . . . . . . . . . . . . 13 . Wheel 6 | . 4 28 16 22 22 21 16 16 17 . . . . . . . . . . . . . . . . . . . . . . . . . Flight 11 | . . . . . . . . . . 36 38 36 35 35 31 27 29 22 22 22 25 25 25 24 25 20 17 20 24 24 25 23 6 21 Device 9 | . 4 14 11 11 11 16 17 12 8 8 7 7 7 7 5 . 4 10 11 11 9 12 10 8 5 5 8 6 12 11 8 4 7 12 Storage 4 | . 14 14 11 11 11 11 9 9 9 . . . . . . . . . . . . . . . . . . . . 3 4 3 1 . Processor 3 | . . . . . . . . . . 10 15 14 14 14 12 12 10 5 5 5 5 6 5 5 5 5 4 4 4 4 4 4 4 19 Hackware 7 | . . . . . . . . . . 13 15 14 14 14 24 25 22 22 22 22 22 20 25 26 30 30 27 26 21 21 15 12 1 . Protection 5 | . . . 8 11 11 2 9 8 16 3 . . . . . 4 . . . . 1 5 5 5 5 5 3 6 4 4 2 . 5 7 Artifact 1 | . . . . . . . . . . . . . . . . . . . . . . . . . . . . . . . 4 3 2 . Energy Gun 4 | . 14 7 14 21 22 13 4 . 8 . . . . . . . . . . . . . . 3 . . . . . . . . 1 . Ballistic Gun 2 | . 14 20 7 . . . 4 13 1 . . . . . . . . . . . . . . . . . . . . . . . . . Ballistic Cannon 1 | . . . . . . . 8 2 7 . . . 7 7 10 6 9 5 5 . . . . . . . . . . . . . . . Slashing Weapon 1 | . . . . . . . . . . 5 7 7 7 7 6 1 4 5 5 5 5 1 3 4 5 5 4 4 6 4 4 3 . 1 Peak Build Rating 269 | 6 10 10 21 21 20 24 35 34 36 43 41 47 48 48 58 57 78 72 74 77 82 99 101 108 110 99 136 154 168 174 206 212 269 229 Average Rating 102 | 4 6 8 18 19 19 22 31 31 32 39 41 41 47 48 55 47 65 71 72 72 79 90 86 104 109 99 122 129 160 164 183 201 202 211 On Entrance 74 | . 6 10 9 20 19 20 24 32 33 33 41 41 47 48 48 56 40 65 72 74 77 82 88 96 108 99 99 120 148 164 166 199 207 213 Naked Turns . | . . . . . . . . . . . . . . . . . . . . . . . . . . . . . . . . . . . Heaviest Build 239 | 10 47 47 95 94 94 96 111 109 111 23 12 25 25 24 25 25 33 28 28 28 32 33 36 35 33 29 30 45 50 53 60 58 239 75 Greatest Support 255 | 40 40 26 26 20 20 20 20 26 26 25 25 25 25 25 25 25 35 28 28 28 34 34 35 37 37 32 37 51 56 61 64 66 255 82 Greatest Overweight (x) 27 | . 1 1 16 4 4 9 11 10 10 . . . . . . . 1 . . . . . 1 . . . 1 . 1 1 1 1 27 . Average Overweight (x) . | . . 1 4 4 4 4 5 4 4 . . . . . . . . . . . . . . . . . . . . . . . . . Largest Inventory Capacity 29 | 8 20 20 25 25 25 25 25 25 25 25 5 5 5 5 5 5 5 5 5 5 5 5 5 5 5 5 5 5 5 10 14 14 29 9 Average Capacity 13 | 6 9 20 21 25 25 25 25 25 25 5 5 5 5 5 5 5 5 5 5 5 5 5 5 5 5 5 5 5 5 8 11 14 11 9 Most Carried 25 | 4 9 17 25 25 25 25 25 25 25 25 5 5 5 5 5 5 5 5 5 5 5 5 5 5 5 5 5 5 5 10 14 14 20 9 Average Carried 12 | 2 5 13 20 25 25 24 24 24 23 5 5 4 4 5 4 4 4 4 4 4 5 4 4 4 4 5 4 4 4 8 10 13 9 8 Final Capacity 25 | 8 20 20 25 25 25 25 25 25 25 5 5 5 5 5 5 5 5 5 5 5 5 5 5 5 5 5 5 5 5 10 14 14 9 9 Final Carried 25 | 4 9 17 25 25 25 24 25 24 25 5 5 5 5 5 5 3 5 4 5 5 5 5 5 5 5 5 5 5 5 10 12 14 8 7 Class Distribution -------------------- 25% | Scavenger-Mutant 13% | Hacker-Sprinter 12% | Alien-Mutant 11% | Mutant 9% | Alien-Tank 7% | Hacker-Scout 7% | Alien-Sprinter 4% | Wizard-Sprinter Dominant Class ---------------- Mutant | -10/Materials Mutant | -10/Mines Mutant | -9/Materials Scavenger-Mutant | -9/Mines Scavenger-Mutant | -9/Exiles Scavenger-Mutant | -8/Mines Scavenger-Mutant | -8/Materials Scavenger-Mutant | -8/Storage Scavenger-Mutant | -8/Garrison Hacker-Scout | -7/Factory Hacker-Scout | -7/Lower Caves Hacker-Scout | -7/Lower Caves Hacker-Scout | -7/Zion Hacker-Scout | -6/Proximity Caves Hacker-Scout | -6/Factory Hacker-Sprinter | -6/Garrison Hacker-Scout | -5/Factory Hacker-Sprinter | -5/Upper Caves Hacker-Sprinter | -5/Upper Caves Hacker-Sprinter | -5/Zhirov Hacker-Sprinter | -4/Proximity Caves Hacker-Sprinter | -4/Factory Hacker-Sprinter | -4/Extension Commander-Sprinter | -4/Cetus Wizard-Sprinter | -4/Archives Wizard-Sprinter | -4/Hub_04(d) Wizard-Sprinter | -3/Research Hacker-Sprinter | -3/Quarantine Wizard-Sprinter | -2/Research Wizard-Ninja | -2/Testing Hacker-Ninja | -2/Section 7 Alien-Sprinter | -1/Access Alien-Mutant | -1/Command Scavenger-Sprinter | -1/Access_0 Resources | -11 -10 -10 -9 -9 -9 -8 -8 -8 -8 -7 -7 -7 -7 -6 -6 -6 -5 -5 -5 -5 -4 -4 -4 -4 -4 -4 -3 -3 -2 -2 -2 -1 -1 -1 ----------- Run | Yrd Mat Min Mat Min Exi Min Mat Sto Gar Fac Low Low Zio Pro Fac Gar Fac Upp Upp Zhi Pro Fac Ext Cet Arc Hub Res Qua Res Tes Sec Acc Com Ac0 Matter Collected 8475 | 207 174 37 630 43 . 168 918 866 588 124 135 50 30 24 66 135 136 94 214 45 20 69 609 128 . . 52 250 245 239 3 401 1775 . Remotely . | . . . . . . . . . . . . . . . . . . . . . . . . . . . . . . . . . . . Salvage Created 10420 | . 626 136 1246 97 . 328 1298 681 577 193 141 . . . 30 25 131 . . 99 . 69 867 . 68 . 42 250 164 264 . 463 2625 . Parts 465 | . 35 10 57 4 . 20 78 28 33 15 4 . . . 4 5 5 . . 4 . 2 22 . 6 . 1 11 6 14 . 14 87 . Haulers Intercepted 8 | . 1 . 4 . . . . 2 . . . . . . . . . . . . . . . . . . . . . 1 . . . . Recyclers Shooed 13 | . 1 . 5 . . . 2 1 . . . . . . . . . . . . . . 2 . . . 1 . . . . 1 . . Parts Field Recycled . | . . . . . . . . . . . . . . . . . . . . . . . . . . . . . . . . . . . Retrieved Matter . | . . . . . . . . . . . . . . . . . . . . . . . . . . . . . . . . . . . Parts Self-Destructed 10 | . . . . . . . . . . . 3 . . 3 . . . . 1 3 . . . . . . . . . . . . . . Prevented . | . . . . . . . . . . . . . . . . . . . . . . . . . . . . . . . . . . . Kills | -11 -10 -10 -9 -9 -9 -8 -8 -8 -8 -7 -7 -7 -7 -6 -6 -6 -5 -5 -5 -5 -4 -4 -4 -4 -4 -4 -3 -3 -2 -2 -2 -1 -1 -1 ------- Run | Yrd Mat Min Mat Min Exi Min Mat Sto Gar Fac Low Low Zio Pro Fac Gar Fac Upp Upp Zhi Pro Fac Ext Cet Arc Hub Res Qua Res Tes Sec Acc Com Ac0 Combat Hostiles Destroyed 142 | . 13 2 17 2 . 10 30 10 18 4 4 . . . . 5 . . . . . . 6 . . . . 4 . . . . 17 . Melee 13 | . . . . . . . . . . . . . . . . . . . . . . . 5 . . . . 4 . . . . 4 . Guns 52 | . 10 2 14 1 . 2 12 6 5 . . . . . . . . . . . . . . . . . . . . . . . . . Cannons 38 | . . . . . . 1 15 . 8 . . . . . . 1 . . . . . . . . . . . . . . . . 13 . AOE 38 | . 3 . 3 1 . 7 3 4 5 4 4 . . . . 4 . . . . . . . . . . . . . . . . . . Classes Destroyed 16 | . 7 1 2 . . . 2 . 2 . . . . . . 1 . . . . . . 1 . . . . . . . . . . . Worker 21 | . 1 1 6 1 . 1 4 1 . . . . . . . . . . . . . 1 . . . . . . . . . 3 2 . Builder 12 | . 1 . 1 . . 1 5 2 . . . . . . 1 . . . . . . . . . . . . . . 1 . . . . Tunneler 4 | . . 1 1 . . . 1 . . . . . . . . . 1 . . . . . . . . . . . . . . . . . Hauler 8 | . 1 . 4 . . . . 2 . . . . . . . . . . . . . . . . . . . . . 1 . . . . Recycler 25 | . . . 4 . . . 3 3 . 1 . . . . . . 1 . . . . . 4 . . . . 1 1 1 . 3 3 . Mechanic 1 | . . . . . . . 1 . . . . . . . . . . . . . . . . . . . . . . . . . . . Operator 5 | . 1 . . . . . 1 . . 1 . . . . . . . . . . . . . . . . . . 1 1 . . . . Watcher 10 | . 2 . 1 . . . 2 . . 2 . . . . . . . . . . . 1 1 . . . 1 . . . . . . . Swarmer 46 | . 3 . 3 2 . 4 11 . 3 4 4 . . . . 3 . . . . . . 2 . . . . 4 . . . . 3 . Saboteur 1 | . . . . . . . . . . . . . . . . 1 . . . . . . . . . . . . . . . . . . Grunt 56 | . 10 2 10 . . 6 10 7 7 . . . . . . 1 . . . . . . 3 . . . . . . . . . . . Duelist 1 | . . . . . . . . . . . . . . . . . . . . . . . 1 . . . . . . . . . . . Sentry 19 | . . . 4 . . . 8 3 3 . . . . . . . . . . . . . . . . . . . . . . . 1 . Hunter 4 | . . . . . . . . . 1 . . . . . . . . . . . . . . . . . . . . . . . 3 . Programmer 10 | . . . . . . . . . 4 . . . . . . . . . . . . . . . . . . . . . . . 6 . Heavy 1 | . . . . . . . 1 . . . . . . . . . . . . . . . . . . . . . . . . . . . M Guard 2 | . . . . . . . . . . . . . . . . . . . . . . . . . . . . . . . . . 2 . Packrat 1 | . . . . . . . . . . . 1 . . . . . . . . . . . . . . . . . . . . . . . Best Kill Streak 12 | . 4 2 4 2 . 5 12 10 5 4 4 . . . 1 4 1 . . . . 1 4 . . . 1 5 1 1 . 4 4 . Combat Bots Only 7 | . 3 2 4 2 . 4 7 5 5 4 4 . . . . 4 . . . . . . 3 . . . . 4 . . . . 3 . Max Kills in Single Turn 3 | . 2 1 3 1 . 3 3 3 2 3 2 . . . 1 2 1 . . . . 1 1 . . . 1 1 1 1 . 1 2 . Gunslinging . | . . . . . . . . . . . . . . . . . . . . . . . . . . . . . . . . . . . Exploded 3 | . 2 . 3 1 . 2 3 2 2 3 2 . . . . 2 . . . . . . . . . . . . . . . . . . Melee 1 | . . . . . . . . . . . . . . . . . . . . . . . 1 . . . . 1 . . . . 1 . Uniques/NPCs Destroyed 3 | . . . . . . . . . . . . . . . . . . . . . . . . 1 . . . . . . . . 2 . Revision 17 (-4/Cetus) MAIN.C Shell (-1/Command) MAIN.C (-1/Command) Combat | -11 -10 -10 -9 -9 -9 -8 -8 -8 -8 -7 -7 -7 -7 -6 -6 -6 -5 -5 -5 -5 -4 -4 -4 -4 -4 -4 -3 -3 -2 -2 -2 -1 -1 -1 -------- Run | Yrd Mat Min Mat Min Exi Min Mat Sto Gar Fac Low Low Zio Pro Fac Gar Fac Upp Upp Zhi Pro Fac Ext Cet Arc Hub Res Qua Res Tes Sec Acc Com Ac0 Hostile Shots Fired 1284 | . 52 7 99 6 . 39 122 77 123 24 3 . . . . 68 27 2 2 . 3 18 40 6 . . 28 32 19 4 19 24 267 173 Missed 487 | . 18 1 26 2 . 19 29 21 22 17 1 . . . . 31 12 . 1 . 1 7 20 3 . . 14 12 10 . 12 10 74 124 Intercepted 9 | . . . . . . . . . . . . . . . . . . . . . . . . . . . . . . . . . 9 . Hits 797 | . 34 6 73 4 . 20 93 56 101 7 2 . . . . 37 15 2 1 . 2 11 20 3 . . 14 20 9 4 7 14 193 49 Melee 7 | . . . . . . . . . . . . . . . . 4 . . . . . . . . . . . . . . . . . 3 Projectile 790 | . 34 6 73 4 . 20 93 56 101 7 2 . . . . 33 15 2 1 . 2 11 20 3 . . 14 20 9 4 7 14 193 46 AOE 12 | . . . . . . . . . . . . . . . . . . . . . . . . . . . . . . . . . 12 . Critical Strikes 47 | . . . . . . 1 7 3 8 . . . . . . 2 2 . . . . . 2 2 . . 1 1 . . 2 . 9 7 Part Disruptions 8 | . . . . . . . . . . . . . . . . . . . . . . . . . . . . . . . . 1 7 . Damage Taken 18784 | . 440 74 925 56 . 308 1547 1145 1309 71 29 . . . . 608 181 39 20 . 51 196 435 180 504 . 275 473 203 138 1094 506 6506 1471 Core 3349 | . 58 12 145 28 . 45 200 213 99 37 . . . . . 136 . . 20 . . 56 31 . 86 . . 48 . . 874 288 900 73 Absorbed by Shields 1687 | . . . . . . . . . 112 . . . . . . 102 . . . . . . 120 . . . . . . . . . 1353 . Reduced by Siege Mode 480 | . . . . . . . . . . . . . . . . . . . . . . . . . . . . . . . . . 480 . Ignored by Resistances 515 | . . . . . . . 22 . . . . . . . . . . . . . . . . . . . . . . . 6 43 425 19 Regen/Repaired (Parts) 886 | . . . . . . . . . . . . . . . . . 52 . . . . . . . . . . 49 182 42 107 107 249 98 Core Remaining (%) 68 | 100 . 72 . . . 45 . . 6 . . . . 94 . 84 . . . . 98 . . . . 84 . 91 . . 35 . . 41 Volleys Fired 692 | 2 56 11 115 7 1 18 128 50 74 3 3 . . 4 1 11 2 13 9 . . 10 29 11 . . . 4 2 13 4 . 111 . Largest 4 | 2 2 2 2 2 2 2 2 2 2 1 1 . . 1 1 2 2 1 1 . . 1 1 1 . . . 1 1 1 1 . 4 . Hottest 330 | 60 60 60 121 96 96 96 92 65 95 30 30 . . 40 44 84 80 40 40 . . 7 49 65 . . . 10 113 113 113 . 330 . Shots Fired 1087 | 4 111 20 223 13 2 28 221 95 116 3 3 . . 4 1 18 3 13 9 . . 10 29 11 . . . 4 2 13 4 . 127 . Gun 665 | 4 111 20 222 12 2 20 104 74 81 . . . . . . . . . . . . . . 11 . . . . . . . . 4 . Cannon 353 | . . . . . . 2 116 17 31 . . . . 4 1 15 3 13 9 . . . . . . . . . 2 13 4 . 123 . Launcher 31 | . . . 1 1 . 6 1 4 4 3 3 . . . . 3 . . . . . . 5 . . . . . . . . . . . Special 38 | . . . . . . . . . . . . . . . . . . . . . . 10 24 . . . . 4 . . . . . . Kinetic 495 | 2 56 17 58 . . . 155 91 59 . . . . 4 1 15 3 13 9 . . . . . . . . . . . . . 12 . Thermal 336 | 2 35 . 159 6 1 10 42 . 53 . . . . . . . . . . . . . . . . . . . 2 13 4 . 9 . Explosive 31 | . . . 1 1 . 6 1 4 4 3 3 . . . . 3 . . . . . . 5 . . . . . . . . . . . Electromagnetic 98 | . 20 3 5 6 1 12 23 . . . . . . . . . . . . . . . . 11 . . . . . . . . 17 . Slashing 89 | . . . . . . . . . . . . . . . . . . . . . . . . . . . . . . . . . 89 . Robot Hit Streak 58 | 4 14 12 10 6 . 3 18 9 7 . 3 . . . . 11 . . . . . 6 18 4 . . . 1 . . . . 58 . Robot Miss Streak 6 | . 5 1 5 2 . 3 4 4 2 1 . . . . . 3 . . . . . 1 1 2 . . . 2 . . . . 6 . Penetration Max 1 | . . . . . . . 1 1 . . . . . . . . . . . . . . . . . . . . . . . . 1 . Secondary Targets 9 | . 2 1 2 . . . 3 . 1 . . . . . . . . . . . . . . . . . . . . . . . . . Max Gunslinging Chain 1 | . 1 1 1 . . . 1 . 1 . . . . . . . . . . . . . . . . . . . . . . . . . Shots Hit Robots 755 | 4 65 16 141 6 . 12 144 59 65 6 4 . . . 1 12 3 . . 2 . 11 43 7 2 . 3 10 3 6 1 10 113 6 Core Hits 481 | 1 36 10 49 4 . 17 62 28 35 8 6 . . . 1 7 2 . . 1 . 1 10 2 2 . 1 5 . 4 . 4 184 1 Critical Kills 1 | . . . . . . . . . . 1 . . . . . . . . . . . . . . . . . . . . . . . . Critical Parts Destroyed 6 | . 1 . . . . . . 1 1 . . . . . . . . . . . . 1 2 . . . . . . . . . . . Critical Strikes 47 | . 2 . 6 . . . 12 3 8 1 . . . . . . . . . . . 1 3 1 . . . 1 . . . . 6 3 Burn 10 | . . . 6 . . . 2 . 2 . . . . . . . . . . . . . . . . . . . . . . . . . Destroy 3 | . 1 . . . . . . 1 1 . . . . . . . . . . . . . . . . . . . . . . . . . Blast 21 | . . . . . . . 10 2 5 . . . . . . . . . . . . . . . . . . . . . . . 4 . Corrupt 2 | . 1 . . . . . . . . . . . . . . . . . . . . . . 1 . . . . . . . . . . Smash 4 | . . . . . . . . . . 1 . . . . . . . . . . . 1 2 . . . . . . . . . . . Sever 4 | . . . . . . . . . . . . . . . . . . . . . . . 1 . . . . 1 . . . . 2 . Impale 3 | . . . . . . . . . . . . . . . . . . . . . . . . . . . . . . . . . . 3 Melee Attacks 323 | . . . . . . . 4 4 . 25 1 4 . 1 4 3 14 1 4 2 . 19 27 . 2 1 17 21 14 25 20 31 59 20 Impact 41 | . . . . . . . 4 4 . 2 . . . . . . . . . . . 17 14 . . . . . . . . . . . Slashing 242 | . . . . . . . . . . 23 1 4 . 1 4 3 14 1 4 2 . 2 13 . 2 1 17 21 14 25 20 31 35 4 Piercing 40 | . . . . . . . . . . . . . . . . . . . . . . . . . . . . . . . . . 24 16 Sneak Attacks 34 | . . . . . . . . 1 . 1 1 . . . 1 . 2 . . . . 1 6 . . . 1 1 2 4 . 8 5 . Combat Hostiles 1 | . . . . . . . . . . . . . . . . . . . . . . . . . . . . . . . . . 1 . Follow-up Attacks 2 | . . . . . . . . . . . . . . . . . . . . . . . . . . . . . . . . . . 2 Damage Inflicted 32642 | 35 797 152 2118 182 . 808 3370 1831 1640 678 476 . . . 69 669 239 . . 148 . 157 1509 189 214 . 166 403 492 815 134 1611 13532 208 Guns 5786 | 35 640 152 1908 89 . 111 1211 773 678 . . . . . . . . . . . . . . 189 . . . . . . . . . . Cannons 15202 | . . . . . . 48 1916 307 574 . . . . . . 350 . . . . . . . . . . . . . . . . 12007 . Explosions 3616 | . 157 . 210 93 . 649 242 683 388 287 381 . . . . 319 . . . . . . 207 . . . . . . . . . . . Melee 8001 | . . . . . . . . 68 . 391 95 . . . 69 . 239 . . 148 . 157 1302 . 214 . 166 403 492 815 134 1611 1489 208 Ramming 37 | . . . . . . . 1 . . . . . . . . . . . . . . . . . . . . . . . . . 36 . Kinetic 6397 | 15 273 111 385 . . . 2401 1080 843 . . . . . . 350 . . . . . . . . . . . . . . . . 939 . Thermal 2931 | 20 366 . 1492 117 . 58 469 . 409 . . . . . . . . . . . . . . . . . . . . . . . . . Explosive 3339 | . . . 210 20 . 649 195 683 388 287 381 . . . . 319 . . . . . . 207 . . . . . . . . . . . Electromagnetic 1178 | . 158 41 31 45 . 101 304 . . . . . . . . . . . . . . . . 189 . . . . . . . . 309 . Impact 876 | . . . . . . . . 68 . 110 . . . . . . . . . . . 157 541 . . . . . . . . . . . Slashing 17548 | . . . . . . . . . . 281 95 . . . 69 . 239 . . 148 . . 761 . 214 . 166 403 492 815 134 1611 12120 . Piercing 336 | . . . . . . . . . . . . . . . . . . . . . . . . . . . . . . . . . 128 208 Highest Corruption 17 | . . . . . . . 2 8 10 1 . . . . . 4 . . 1 1 1 1 1 1 1 1 . . . . 1 2 17 . Average Corruption 6 | . . . . . . . 2 5 9 1 . . . . . 4 . . 1 1 1 1 1 1 1 1 . . . . 1 1 11 . Corruption Purged 18 | . . . . . . . . . . 1 . . . . . . . . . . . . . . . . . . . . . . 17 . Corruption Blocked . | . . . . . . . . . . . . . . . . . . . . . . . . . . . . . . . . . . . Effects 119 | . . . . . . . 1 11 26 2 . . . . . 1 . . 2 1 1 1 1 3 . . . . . . . 1 68 . Message Errors 18 | . . . . . . . . 1 3 . . . . . . . . . . . . . . . . . . . . . . . 14 . Matter Fused 28 | . . . . . . . 1 6 7 . . . . . . 1 . . 1 1 . . 1 1 . . . . . . . . 9 . Heat Flow Errors 21 | . . . . . . . . . 4 1 . . . . . . . . . . . . . 1 . . . . . . . . 15 . Energy Discharges 19 | . . . . . . . . 2 1 . . . . . . . . . . . . . . 1 . . . . . . . . 15 . Parts Rejected 1 | . . . . . . . . . . . . . . . . . . . . . . . . . . . . . . . . . 1 . Parts Fused 2 | . . . . . . . . . . . . . . . . . . . . . . . . . . . . . . . . . 2 . Data Loss (minor) 12 | . . . . . . . . 1 6 1 . . . . . . . . 1 . 1 . . . . . . . . . . . 2 . Data Loss (major) 7 | . . . . . . . . 1 2 . . . . . . . . . . . . 1 . . . . . . . . . 1 2 . Misfires 3 | . . . . . . . . . . . . . . . . . . . . . . . . . . . . . . . . . 3 . Alerts 2 | . . . . . . . . . . . . . . . . . . . . . . . . . . . . . . . . . 2 . Weapon Failures 6 | . . . . . . . . . 3 . . . . . . . . . . . . . . . . . . . . . . . 3 . Overload Shots . | . . . . . . . . . . . . . . . . . . . . . . . . . . . . . . . . . . . Overflow Damage 2192 | . . . . . . 8 78 134 . 100 1 . . . . 26 68 . . 72 . 97 222 . . . 19 8 332 79 79 365 504 . Projectiles 136 | . . . . . . . 65 6 . . . . . . . 2 . . . . . . . . . . . . . . . . 63 . Explosions 119 | . . . . . . 8 13 71 . 2 1 . . . . 24 . . . . . . . . . . . . . . . . . . Melee 1937 | . . . . . . . . 57 . 98 . . . . . . 68 . . 72 . 97 222 . . . 19 8 332 79 79 365 441 . Knockbacks 28 | . . . . . . . 11 4 3 . . . . . . 5 . . . . . . 2 . . . . . . . . . 3 . Impact 3 | . . . . . . . . 1 . . . . . . . . . . . . . . 2 . . . . . . . . . . . Kinetic 24 | . . . . . . . 10 3 3 . . . . . . 5 . . . . . . . . . . . . . . . . 3 . Secondary 1 | . . . . . . . 1 . . . . . . . . . . . . . . . . . . . . . . . . . . . Self-Inflicted Damage 334 | . 13 . . 21 . 43 . 92 88 . . . . . . 77 . . . . . . . . . . . . . . . . . . Shots 13 | . 1 . . 1 . 3 . 3 3 . . . . . . 2 . . . . . . . . . . . . . . . . . . Rammed 2 | . . . . . . 1 1 . . . . . . . . . . . . . . . . . . . . . . . . . . . Targets Rammed 3 | . . . . . . 1 1 . . . . . . . . . . . . . . . . . . . . . . . . . 1 . Kicked . | . . . . . . . . . . . . . . . . . . . . . . . . . . . . . . . . . . . Crushed 1 | . . . . . . . . . . . . . . . . . . . . . . . . . . . . . . . . . 1 . Highest Temperature 426 | 20 82 35 213 12 . 87 84 312 426 130 8 . . 13 . 109 24 4 4 . . . . 198 . . 388 . 92 232 76 . 194 37 Average Temperature 59 | 15 26 16 39 9 . 28 20 102 156 16 4 . . 12 . 45 6 4 4 . . . . 81 . . 388 . 50 85 33 . 60 14 Received Heat Transfer 3129 | . 162 42 372 6 . 135 477 423 405 6 . . . . . 160 24 . . . . 9 100 . . . 447 37 18 9 18 9 165 105 Effects 4 | . . . . . . . . . 4 . . . . . . . . . . . . . . . . . . . . . . . . . Shutdowns 1 | . . . . . . . . . 1 . . . . . . . . . . . . . . . . . . . . . . . . . Interference 3 | . . . . . . . . . 3 . . . . . . . . . . . . . . . . . . . . . . . . . Siege Activations 1 | . . . . . . . . . . . . . . . . . . . . . . . . . . . . . . . . . 1 . Total Turns 72 | . . . . . . . . . . . . . . . . . . . . . . . . . . . . . . . . . 72 . Longest Duration 72 | . . . . . . . . . . . . . . . . . . . . . . . . . . . . . . . . . 72 . Martial Activations . | . . . . . . . . . . . . . . . . . . . . . . . . . . . . . . . . . . . Shielding Activations . | . . . . . . . . . . . . . . . . . . . . . . . . . . . . . . . . . . . Robots Disrupted . | . . . . . . . . . . . . . . . . . . . . . . . . . . . . . . . . . . . Combat Hostiles . | . . . . . . . . . . . . . . . . . . . . . . . . . . . . . . . . . . . Robots Corrupted 2 | . . . . . . . . 1 . . . . . . . . . . . . . . 1 . . . . . . . . . . . Combat Hostiles 1 | . . . . . . . . . . . . . . . . . . . . . . . 1 . . . . . . . . . . . Parts Fried 9 | . 1 . . . . . 2 . . . . . . . . . . . . . . . 5 . . . . . . . . . 1 . Impact Corruptions 8 | . . . . . . . . 2 . . . . . . . . . . . . . 1 4 . . . . . . . . . 1 . Robots Melted . | . . . . . . . . . . . . . . . . . . . . . . . . . . . . . . . . . . . Combat Hostiles . | . . . . . . . . . . . . . . . . . . . . . . . . . . . . . . . . . . . Parts Melted 14 | . . . 10 . . 1 2 . 1 . . . . . . . . . . . . . . . . . . . . . . . . . Heat Transferred 7063 | 50 675 . 4107 161 . 148 1110 . 812 . . . . . . . . . . . . . . . . . . . . . . . . . Parts Sabotaged 6 | . . . . . . . . . . . . . . . . 6 . . . . . . . . . . . . . . . . . . Parts Stolen . | . . . . . . . . . . . . . . . . . . . . . . . . . . . . . . . . . . . Parts Stripped . | . . . . . . . . . . . . . . . . . . . . . . . . . . . . . . . . . . . Power Chain Reactions 4 | . 2 . . 1 . . 1 . . . . . . . . . . . . . . . . . . . . . . . . . . . Alert | -11 -10 -10 -9 -9 -9 -8 -8 -8 -8 -7 -7 -7 -7 -6 -6 -6 -5 -5 -5 -5 -4 -4 -4 -4 -4 -4 -3 -3 -2 -2 -2 -1 -1 -1 ------- Run | Yrd Mat Min Mat Min Exi Min Mat Sto Gar Fac Low Low Zio Pro Fac Gar Fac Upp Upp Zhi Pro Fac Ext Cet Arc Hub Res Qua Res Tes Sec Acc Com Ac0 Maximum Alert Level 3 | . . . . . . 1 2 1 2 2 . . . . . 1 . . . . . . 3 2 2 1 . . . . . . 3 . Low Security (%) 53 | 100 100 100 100 100 . 97 57 64 19 . . . . . 100 89 100 . . . . 100 24 . 53 55 100 100 100 100 100 100 3 . Level 1 11 | . . . . . . 2 16 35 34 69 . . . . . 10 . . . . . . 53 63 18 44 . . . . . . 8 . Level 2 34 | . . . . . . . 25 . 46 30 . . . . . . . . . . . . 21 36 28 . . . . . . . 86 . Level 3 . | . . . . . . . . . . . . . . . . . . . . . . . . . . . . . . . . . 1 . Level 4 . | . . . . . . . . . . . . . . . . . . . . . . . . . . . . . . . . . . . Level 5 . | . . . . . . . . . . . . . . . . . . . . . . . . . . . . . . . . . . . High Security . | . . . . . . . . . . . . . . . . . . . . . . . . . . . . . . . . . . . Max Security . | . . . . . . . . . . . . . . . . . . . . . . . . . . . . . . . . . . . Peak Influence 835 | . 68 40 184 74 . 213 451 316 558 443 . . . . 19 297 155 . . . . 127 701 435 511 219 110 90 32 105 95 102 835 . Initial 369 | . . 20 . 13 . . . 188 68 292 . . . . 9 5 155 . . . . . 44 369 144 133 110 . 18 1 54 4 49 . Average 144 | . 23 7 57 11 . 74 180 167 358 309 . . . . 3 105 89 . . . . 22 321 386 260 185 52 26 11 21 20 28 432 . Influence Increases 10637 | . 371 60 613 125 . 353 1118 345 550 357 90 . . 98 35 332 76 . 15 10 . 282 1111 387 467 88 64 357 112 241 288 285 2248 159 Destroy 0b10 Robot/C 4400 | . 260 40 340 80 . 240 600 200 360 80 80 . . 60 . 100 . . . . . 40 500 160 200 . . 80 . . . . 980 . Destroy 0b10 Robot/NC 520 | . 30 10 85 10 . 10 85 40 . 20 . . . . 5 . 10 . . 10 . 15 25 10 15 . 5 5 10 20 . 30 70 . Destroy Leader 692 | . 56 10 100 20 . 30 154 44 20 14 10 . . 10 . 10 . . . . . 12 32 . . . 2 10 . 2 . . 156 . Allied During Kill 1311 | . . . . 3 . 21 . . . . . . . 13 . . . . . . . 10 358 170 215 . . . . . . . 521 . Successful Hack 482 | . 4 . . . . . 5 5 . 45 . . . . 12 . 18 . . . . 12 3 5 . 36 16 93 12 12 39 30 135 . Select Force Hacks 50 | . . . . . . . . . . . . . . . . . . . . . . . . . . 50 . . . . . . . . Disable Machine 765 | . 15 . 30 . . . 75 30 . 135 . . . . 15 . 30 . . . . 15 . . 15 . . 105 15 45 60 15 60 105 Anti-Garrison Action 150 | . . . . . . . . . 100 . . . . . . 50 . . . . . . . . . . . . . . . . . . Destroy Structure 842 | . 6 . 13 12 . 52 49 26 70 33 . . . . 3 22 18 . . . . 28 118 42 22 2 26 4 30 72 9 45 131 9 Partial Spotted 405 | . . . . . . . . . . 15 . . . . . 15 . . . . . 105 60 . . . . . 30 30 45 15 45 45 Lose Combat Pursuer 1020 | . . . 45 . . . 150 . . 15 . . . 15 . 135 . . 15 . . 45 15 . . . 15 60 15 60 135 150 150 . Influence Decreases 10548 | . 318 113 578 160 . 353 671 687 97 506 222 143 134 83 42 43 360 13 15 10 . 192 540 686 448 258 275 323 143 147 378 214 1829 567 Entered New Map 2607 | . . 33 . 22 . . . 259 37 266 152 53 134 . 6 3 142 5 . . . . 46 292 218 248 101 . 16 2 43 3 29 497 Time Decay 4674 | . 265 70 378 138 . 283 485 198 . 230 70 90 . 30 36 . 198 8 15 10 . 142 334 214 30 10 150 150 127 145 210 188 470 . Lost Part 664 | . 10 10 50 . . 30 90 80 60 . . . . . . 40 20 . . . . 10 20 20 20 . 14 30 . . 20 . 70 70 Lost Ally 1903 | . . . . . . 40 . . . 10 . . . 53 . . . . . . . 40 140 160 180 . 10 . . . 10 . 1260 . Purge Threat 700 | . 43 . 150 . . . 96 150 . . . . . . . . . . . . . . . . . . . 143 . . 95 23 . . Squads Dispatched 35 | . 2 . 2 . . . 3 . . 1 . . . . 2 . 1 . . . . 3 . . . 1 . 2 2 5 2 3 6 . Investigation 6 | . . . 1 . . . . . . . . . . . 1 . . . . . . 2 . . . 1 . 1 . . . . . . Extermination 16 | . . . . . . . . . . 1 . . . . 1 . . . . . . 1 . . . . . 1 2 2 2 2 4 . Reinforcement 11 | . 2 . 1 . . . 3 . . . . . . . . . 1 . . . . . . . . . . . . 2 . 1 1 . Assault 2 | . . . . . . . . . . . . . . . . . . . . . . . . . . . . . . 1 . . 1 . Garrison . | . . . . . . . . . . . . . . . . . . . . . . . . . . . . . . . . . . . Intercept . | . . . . . . . . . . . . . . . . . . . . . . . . . . . . . . . . . . . Searches Triggered . | . . . . . . . . . . . . . . . . . . . . . . . . . . . . . . . . . . . Construction Impeded 1 | . . . 1 . . . . . . . . . . . . . . . . . . . . . . . . . . . . . . . Haulers Reinforced 1 | . . . . . . . . . . . . . . . . . . . . . . . . . . . . . . . . 1 . . Active Scanning Responses . | . . . . . . . . . . . . . . . . . . . . . . . . . . . . . . . . . . . Cargo Convoy Interrupts . | . . . . . . . . . . . . . . . . . . . . . . . . . . . . . . . . . . . Stealth | -11 -10 -10 -9 -9 -9 -8 -8 -8 -8 -7 -7 -7 -7 -6 -6 -6 -5 -5 -5 -5 -4 -4 -4 -4 -4 -4 -3 -3 -2 -2 -2 -1 -1 -1 --------- Run | Yrd Mat Min Mat Min Exi Min Mat Sto Gar Fac Low Low Zio Pro Fac Gar Fac Upp Upp Zhi Pro Fac Ext Cet Arc Hub Res Qua Res Tes Sec Acc Com Ac0 Distress Signals 41 | . 3 . 2 . . . 2 . . . . . . . . . . . . . . . 2 2 . . . 2 1 . 3 . 24 . Communications Jammed 111 | . . . . . . . 14 3 . . . . . . . . . . . . . 20 63 . . . . 3 . . 8 . . . Distress Signals 111 | . . . . . . . 14 3 . . . . . . . . . . . . . 20 63 . . . . 3 . . 8 . . . Times Spotted 429 | . 19 2 20 5 . 13 49 15 18 14 2 . . 3 1 17 6 2 1 . 1 15 26 11 7 1 8 17 22 7 22 15 51 39 Peak Tracking Total 36 | . 3 2 4 3 . 4 6 6 4 4 2 . . 2 . 13 2 2 1 . 1 8 5 5 7 2 5 5 6 5 7 10 6 36 Tactical Retreats 44 | . . . 2 . . . 9 . . 1 . . . 1 . 2 . . 1 . . 2 1 . . . 1 3 4 1 5 4 3 4 Traps | -11 -10 -10 -9 -9 -9 -8 -8 -8 -8 -7 -7 -7 -7 -6 -6 -6 -5 -5 -5 -5 -4 -4 -4 -4 -4 -4 -3 -3 -2 -2 -2 -1 -1 -1 ------- Run | Yrd Mat Min Mat Min Exi Min Mat Sto Gar Fac Low Low Zio Pro Fac Gar Fac Upp Upp Zhi Pro Fac Ext Cet Arc Hub Res Qua Res Tes Sec Acc Com Ac0 Traps Triggered 29 | . 2 . 1 . . . 2 1 4 . . . . . . 3 . . . . . 1 7 . . . 1 . 2 . . 1 4 . Indirectly . | . . . . . . . . . . . . . . . . . . . . . . . . . . . . . . . . . . . Trap Hack Attempts . | . . . . . . . . . . . . . . . . . . . . . . . . . . . . . . . . . . . Triggered . | . . . . . . . . . . . . . . . . . . . . . . . . . . . . . . . . . . . Disarmed . | . . . . . . . . . . . . . . . . . . . . . . . . . . . . . . . . . . . Reprogrammed 4 | . . . . . . . . . . . . . . . . . 4 . . . . . . . . . . . . . . . . . Reused . | . . . . . . . . . . . . . . . . . . . . . . . . . . . . . . . . . . . Traps Extracted . | . . . . . . . . . . . . . . . . . . . . . . . . . . . . . . . . . . . Installed . | . . . . . . . . . . . . . . . . . . . . . . . . . . . . . . . . . . . Triggered . | . . . . . . . . . . . . . . . . . . . . . . . . . . . . . . . . . . . Machines | -11 -10 -10 -9 -9 -9 -8 -8 -8 -8 -7 -7 -7 -7 -6 -6 -6 -5 -5 -5 -5 -4 -4 -4 -4 -4 -4 -3 -3 -2 -2 -2 -1 -1 -1 ---------- Run | Yrd Mat Min Mat Min Exi Min Mat Sto Gar Fac Low Low Zio Pro Fac Gar Fac Upp Upp Zhi Pro Fac Ext Cet Arc Hub Res Qua Res Tes Sec Acc Com Ac0 Machines Disabled 55 | . 1 . 2 . . . 5 2 2 9 . . . . 1 1 2 . . . . 1 . . 1 . . 7 1 4 4 1 4 7 Max in Single Turn 4 | . 1 . 1 . . . 2 1 1 4 . . . . 1 1 1 . . . . 1 . . . . . 1 1 1 1 1 1 1 Garrison Access 8 | . . . . . . . . . . . . . . . . . 1 . . . . 1 . . . . 1 . 1 1 . 3 . . Garrison Relay 4 | . . . . . . . . . 3 . . . . . . 1 . . . . . . . . . . . . . . . . . . Network Hub 1 | . . . . . . . . . . . . . . . . . . . . . . . . . . 1 . . . . . . . . Machines Repaired . | . . . . . . . . . . . . . . . . . . . . . . . . . . . . . . . . . . . Machines Dismantled . | . . . . . . . . . . . . . . . . . . . . . . . . . . . . . . . . . . . Machines Sabotaged 1 | . . . . . . . . . . . . . . . . . . . . . . . . . . 1 . . . . . . . . Overloaded Fab Kills . | . . . . . . . . . . . . . . . . . . . . . . . . . . . . . . . . . . . Hacking | -11 -10 -10 -9 -9 -9 -8 -8 -8 -8 -7 -7 -7 -7 -6 -6 -6 -5 -5 -5 -5 -4 -4 -4 -4 -4 -4 -3 -3 -2 -2 -2 -1 -1 -1 --------- Run | Yrd Mat Min Mat Min Exi Min Mat Sto Gar Fac Low Low Zio Pro Fac Gar Fac Upp Upp Zhi Pro Fac Ext Cet Arc Hub Res Qua Res Tes Sec Acc Com Ac0 Machines Accessed 120 | . 3 . 1 . 2 . 3 4 3 13 1 1 . . 5 . 9 . . 4 . 9 9 1 1 2 3 8 5 6 7 11 9 . Terminals 86 | . 3 . 1 . . . 3 3 3 9 . 1 . . 3 . 5 . . . . 6 9 1 . 2 1 6 4 3 7 7 9 . Fabricators 6 | . . . . . . . . . . 2 . . . . 1 . . . . . . 2 . . . . . . . 1 . . . . Repair Stations 5 | . . . . . . . . . . 1 . . . . . . 1 . . . . . . . . . . 1 . 1 . 1 . . Recycling Units 4 | . . . . . . . . . . 1 . . . . . . 2 . . . . . . . . . 1 . . . . . . . Scanalyzers 1 | . . . . . . . . . . . . . . . . . . . . . . . . . . . . 1 . . . . . . Garrison Access 10 | . . . . . . . . 1 . . . . . . 1 . 1 . . . . 1 . . . . 1 . 1 1 . 3 . . Total Hacks 345 | . 8 . 3 . 3 . 11 10 3 27 2 1 . . 20 . 23 . . 17 . 18 16 2 25 4 12 26 19 22 17 25 31 . Successful 213 | . 3 . 1 . 3 . 4 3 1 15 2 1 . . 9 . 17 . . 17 . 12 8 1 25 4 7 14 7 17 11 12 19 . Failed 132 | . 5 . 2 . . . 7 7 2 12 . . . . 11 . 6 . . . . 6 8 1 . . 5 12 12 5 6 13 12 . Catastrophic 15 | . . . 1 . . . . 3 1 2 . . . . . . 1 . . . . . . . . . . 2 2 . 1 . 2 . Database Lockouts . | . . . . . . . . . . . . . . . . . . . . . . . . . . . . . . . . . . . Manual 107 | . 2 . 3 . . . 7 7 . 9 . . . . 13 . 9 . . . . 7 1 1 . 3 5 7 9 8 6 3 7 . Terminals 245 | . 8 . 3 . . . 11 8 3 21 . 1 . . 17 . 16 . . . . 12 16 2 . 4 8 16 17 17 17 17 31 . Fabricators 10 | . . . . . . . . . . 3 . . . . 2 . . . . . . 4 . . . . . . . 1 . . . . Repair Stations 16 | . . . . . . . . . . 2 . . . . . . 4 . . . . . . . . . . 6 . 2 . 2 . . Recycling Units 5 | . . . . . . . . . . 1 . . . . . . 2 . . . . . . . . . 2 . . . . . . . Scanalyzers 4 | . . . . . . . . . . . . . . . . . . . . . . . . . . . . 4 . . . . . . Garrison Access 18 | . . . . . . . . 2 . . . . . . 1 . 1 . . . . 2 . . . . 2 . 2 2 . 6 . . Terminal Hacks 150 | . 3 . 1 . 3 . 4 1 1 6 2 1 . . 5 . 7 . . 17 . 5 8 1 25 2 3 10 6 10 7 7 15 . Record 48 | . . . . . 3 . 1 . . 3 2 1 . . . . . . . 5 . . . . 25 . . 2 2 . . . 4 . Part Schematic 5 | . . . . . . . . . . . . . . . 1 . . . . 4 . . . . . . . . . . . . . . Robot Analysis 5 | . . . . . . . . . . . . . . . . . . . . 4 . . . . . . . . . . . 1 . . Prototype ID Bank 17 | . 1 . . . . . . . . . . . . . 1 . 3 . . 4 . 1 . . . . 1 . 1 2 1 . 2 . Open Door 16 | . . . . . . . . . . . . . . . . . . . . . . 1 7 1 . . . . . . 3 3 1 . Level Access Points 4 | . . . . . . . . . . . . . . . . . . . . . . . . . . 1 1 1 . 1 . . . . Branch Access Points 7 | . . . . . . . . . . 1 . . . . 1 . 1 . . . . 1 . . . . 1 . 1 . . 1 . . Emergency Access Points 8 | . 1 . . . . . . . 1 . . . . . . . 1 . . . . . . . . . . 1 . 2 . . 2 . Machine Index 4 | . . . . . . . . . . . . . . . . . . . . . . . . . . . . 1 1 . 1 . 1 . Terminal Index 2 | . . . . . . . . . . 1 . . . . . . 1 . . . . . . . . . . . . . . . . . Garrison Index 1 | . . . . . . . . . . 1 . . . . . . . . . . . . . . . . . . . . . . . . Alert Level 2 | . . . . . . . . . . . . . . . . . . . . . . . . . . . . . . 1 . . 1 . Unreport Threat 9 | . 1 . 1 . . . 1 1 . . . . . . . . . . . . . . . . . . . 3 . . 1 1 . . Locate Traps 5 | . . . . . . . . . . . . . . . . . . . . . . . . . . 1 . 1 . 1 . . 2 . Reprogram Traps 1 | . . . . . . . . . . . . . . . . . 1 . . . . . . . . . . . . . . . . . Dispatch Records 1 | . . . . . . . 1 . . . . . . . . . . . . . . . . . . . . . . . . . . . Recall Investigation 4 | . . . . . . . . . . . . . . . 1 . . . . . . 2 . . . . . 1 . . . . . . Recall Extermination 2 | . . . . . . . . . . . . . . . . . . . . . . . . . . . . . . 1 1 . . . Zone Layout 7 | . . . . . . . 1 . . . . . . . 1 . . . . . . . 1 . . . . . 1 2 . 1 . . Disengage Seal 2 | . . . . . . . . . . . . . . . . . . . . . . . . . . . . . . . . . 2 . Fabricator Hacks 9 | . . . . . . . . . . 2 . . . . 2 . . . . . . 4 . . . . . . . 1 . . . . Network Status 2 | . . . . . . . . . . 2 . . . . . . . . . . . . . . . . . . . . . . . . Load Schematic 3 | . . . . . . . . . . . . . . . 1 . . . . . . 2 . . . . . . . . . . . . Build 4 | . . . . . . . . . . . . . . . 1 . . . . . . 2 . . . . . . . 1 . . . . Repair Station Hacks 11 | . . . . . . . . . . 1 . . . . . . 4 . . . . . . . . . . 3 . 2 . 1 . . Scan Component 7 | . . . . . . . . . . 1 . . . . . . 2 . . . . . . . . . . 2 . 1 . 1 . . Repair 4 | . . . . . . . . . . . . . . . . . 2 . . . . . . . . . . 1 . 1 . . . . Recycling Unit Hacks 4 | . . . . . . . . . . 1 . . . . . . 2 . . . . . . . . . 1 . . . . . . . Retrieve Components 4 | . . . . . . . . . . 1 . . . . . . 2 . . . . . . . . . 1 . . . . . . . Scanalyzer . | . . . . . . . . . . . . . . . . . . . . . . . . . . . . . . . . . . . Garrison Access Hacks 12 | . . . . . . . . 1 . . . . . . 1 . 1 . . . . 2 . . . . 2 . 1 1 . 3 . . Unlock Access 2 | . . . . . . . . 1 . . . . . . 1 . . . . . . . . . . . . . . . . . . . Seal Access 8 | . . . . . . . . . . . . . . . . . 1 . . . . 1 . . . . 1 . 1 1 . 3 . . Coupler Status 2 | . . . . . . . . . . . . . . . . . . . . . . 1 . . . . 1 . . . . . . . Unauthorized Hacks 27 | . . . . . . . . 1 . 5 . . . . 1 . 3 . . . . 1 . . . 2 1 1 . 3 4 1 4 . Terminals 26 | . . . . . . . . 1 . 5 . . . . 1 . 3 . . . . 1 . . . 2 1 . . 3 4 1 4 . Track 2 | . . . . . . . . . . . . . . . . . . . . . . . . . . . . . . 1 . . 1 . Assimilate 8 | . . . . . . . . . . 3 . . . . . . 2 . . . . 1 . . . . 1 . . . 1 . . . Botnet 13 | . . . . . . . . 1 . 2 . . . . 1 . 1 . . . . . . . . 1 . . . 2 2 1 2 . Operators 2 | . . . . . . . . . . . . . . . . . . . . . . . . . . . . . . . 1 . 1 . Sabotage 1 | . . . . . . . . . . . . . . . . . . . . . . . . . . 1 . . . . . . . . Fabricators . | . . . . . . . . . . . . . . . . . . . . . . . . . . . . . . . . . . . Repair Stations . | . . . . . . . . . . . . . . . . . . . . . . . . . . . . . . . . . . . Recycling Units . | . . . . . . . . . . . . . . . . . . . . . . . . . . . . . . . . . . . Scanalyzers 1 | . . . . . . . . . . . . . . . . . . . . . . . . . . . . 1 . . . . . . Researchers 1 | . . . . . . . . . . . . . . . . . . . . . . . . . . . . 1 . . . . . . Garrison Access . | . . . . . . . . . . . . . . . . . . . . . . . . . . . . . . . . . . . Data Cores Recovered 1 | . . . . . . . . . . 1 . . . . . . . . . . . . . . . . . . . . . . . . Used . | . . . . . . . . . . . . . . . . . . . . . . . . . . . . . . . . . . . Hacking Detections 71 | . 2 . 1 . . . 2 4 3 11 . . . . 3 . 7 . . . . 5 4 . . 1 2 4 5 3 4 5 5 . Full Trace Events 4 | . . . . . . . . . . . . . . . 1 . . . . . . 2 . . . . . 1 . . . . . . Feedback Events 1 | . . . . . . . . . . . . . . . . . . . . . . . . . . . . 1 . . . . . . Hackware Fried 1 | . . . . . . . . . . . . . . . . . . . . . . . . . . . . 1 . . . . . . Feedback Blocked . | . . . . . . . . . . . . . . . . . . . . . . . . . . . . . . . . . . . Robot Schematics Acquired . | . . . . . . . . . . . . . . . . . . . . . . . . . . . . . . . . . . . Robots Built . | . . . . . . . . . . . . . . . . . . . . . . . . . . . . . . . . . . . Authchips . | . . . . . . . . . . . . . . . . . . . . . . . . . . . . . . . . . . . Time . | . . . . . . . . . . . . . . . . . . . . . . . . . . . . . . . . . . . Total Robot Build Rating . | . . . . . . . . . . . . . . . . . . . . . . . . . . . . . . . . . . . Part Schematics Acquired 5 | . . . . . . . . . . . . . . . 1 . . . . 4 . . . . . . . . . . . . . . Parts Built 4 | . . . . . . . . . . . . . . . 1 . . . . . . 2 . . . . . . . 1 . . . . Authchips . | . . . . . . . . . . . . . . . . . . . . . . . . . . . . . . . . . . . Time 312 | . . . . . . . . . . . . . . . 67 . . . . . . 134 . . . . . . . 111 . . . . Total Part Build Rating 21 | . . . . . . . . . . . . . . . 4 . . . . . . 8 . . . . . . . 9 . . . . Parts Repaired 4 | . . . . . . . . . . . . . . . . . 2 . . . . . . . . . . 1 . 1 . . . . Time 128 | . . . . . . . . . . . . . . . . . 60 . . . . . . . . . . 23 . 45 . . . . Parts Recycled . | . . . . . . . . . . . . . . . . . . . . . . . . . . . . . . . . . . . Recycled Matter . | . . . . . . . . . . . . . . . . . . . . . . . . . . . . . . . . . . . Retrieved Matter . | . . . . . . . . . . . . . . . . . . . . . . . . . . . . . . . . . . . Retrieved Components 9 | . . . . . . . . . . 3 . . . . . . 5 . . . . . . . . . 1 . . . . . . . Parts Scanalyzed . | . . . . . . . . . . . . . . . . . . . . . . . . . . . . . . . . . . . Part Schematics Acquired . | . . . . . . . . . . . . . . . . . . . . . . . . . . . . . . . . . . . Parts Damaged . | . . . . . . . . . . . . . . . . . . . . . . . . . . . . . . . . . . . Bothacking | -11 -10 -10 -9 -9 -9 -8 -8 -8 -8 -7 -7 -7 -7 -6 -6 -6 -5 -5 -5 -5 -4 -4 -4 -4 -4 -4 -3 -3 -2 -2 -2 -1 -1 -1 ------------ Run | Yrd Mat Min Mat Min Exi Min Mat Sto Gar Fac Low Low Zio Pro Fac Gar Fac Upp Upp Zhi Pro Fac Ext Cet Arc Hub Res Qua Res Tes Sec Acc Com Ac0 Used RIF Installer 1 | . . . . . . . . . . . . . . . . 1 . . . . . . . . . . . . . . . . . . Robots Hacked 3 | . . . . . . . . . . . . . . . . . . . . . . 2 . . . . . 1 . . . . . . Non-combat . | . . . . . . . . . . . . . . . . . . . . . . . . . . . . . . . . . . . Combat 3 | . . . . . . . . . . . . . . . . . . . . . . 2 . . . . . 1 . . . . . . Robot Hacks Applied 3 | . . . . . . . . . . . . . . . . . . . . . . 2 . . . . . 1 . . . . . . disable_scanner 1 | . . . . . . . . . . . . . . . . . . . . . . . . . . . . 1 . . . . . . formatsys_high 2 | . . . . . . . . . . . . . . . . . . . . . . 2 . . . . . . . . . . . . Relay Couplers Released 20 | . . . . . . . . . 10 . . . . . . 4 . . . . . 2 . . . . 4 . . . . . . . Machine Destruction 20 | . . . . . . . . . 10 . . . . . . 4 . . . . . 2 . . . . 4 . . . . . . . Attached 2 | . . . . . . . . . . . . . . . . . . . . . . 1 . . . . . 1 . . . . . . Fabnet Peak Effective % . | . . . . . . . . . . . . . . . . . . . . . . . . . . . . . . . . . . . Robots Rewired 21 | . . . . . 3 . . . . . . . . . . . . . . . . . 18 . . . . . . . . . . . Allies Hacked . | . . . . . . . . . . . . . . . . . . . . . . . . . . . . . . . . . . . Hacks Repelled . | . . . . . . . . . . . . . . . . . . . . . . . . . . . . . . . . . . . Allies | -11 -10 -10 -9 -9 -9 -8 -8 -8 -8 -7 -7 -7 -7 -6 -6 -6 -5 -5 -5 -5 -4 -4 -4 -4 -4 -4 -3 -3 -2 -2 -2 -1 -1 -1 -------- Run | Yrd Mat Min Mat Min Exi Min Mat Sto Gar Fac Low Low Zio Pro Fac Gar Fac Upp Upp Zhi Pro Fac Ext Cet Arc Hub Res Qua Res Tes Sec Acc Com Ac0 Total Allies 130 | . . . . 1 3 . . . . 1 . . 4 . . . 2 . . . . 2 27 5 . . 1 . . . 1 . 83 . Largest Group 27 | . . . . 1 3 3 . . . 1 . . 4 4 . . 2 . . . . 2 20 19 15 . 1 . . . 1 . 27 . Highest-Rated Group 1030 | . . . . 31 37 37 . . . 26 . . 118 118 . . 52 . . . . 108 875 1013 787 . 26 . . . 45 . 1030 . Highest-Rated Ally 234 | . . . . 31 31 21 . . . 26 . . 31 31 . . 26 . . . . 54 159 159 96 . 26 . . . 45 . 234 . Initial Warlord ECA Mod 11 | . . . . . . . . . . 2 2 2 2 1 1 1 . . . . . . . . . . . . . . . . . . Total Orders 26 | . . . . . . . . . . . . . . . . . 1 . . . . 1 18 4 2 . . . . . . . . . STAY 13 | . . . . . . . . . . . . . . . . . 1 . . . . . 10 1 1 . . . . . . . . . FOLLOW 13 | . . . . . . . . . . . . . . . . . . . . . . 1 8 3 1 . . . . . . . . . Ally Attacks 625 | . . . . 9 . 17 . . . . . . . 20 . . . . . . . 12 94 74 34 . . . . . . . 365 . Total Damage 18509 | . . . . 144 . 178 . . . . . . . 409 . . . . . . . 349 3197 3048 1633 . . . . . . . 9551 . Kills 96 | . . . . 2 . 3 . . . . . . . 3 . . . . . . . 3 19 11 10 . . . . . . . 45 . Allies Corrupted 5 | . . . . . . . . . . . . . . . . . . . . . . . . . . . . . . . . . 5 . Allies Melted . | . . . . . . . . . . . . . . . . . . . . . . . . . . . . . . . . . . . Intel | -11 -10 -10 -9 -9 -9 -8 -8 -8 -8 -7 -7 -7 -7 -6 -6 -6 -5 -5 -5 -5 -4 -4 -4 -4 -4 -4 -3 -3 -2 -2 -2 -1 -1 -1 ------- Run | Yrd Mat Min Mat Min Exi Min Mat Sto Gar Fac Low Low Zio Pro Fac Gar Fac Upp Upp Zhi Pro Fac Ext Cet Arc Hub Res Qua Res Tes Sec Acc Com Ac0 Active Infowar (turns) 10639 | . . 348 131 . . 516 1510 416 27 479 145 188 386 139 184 182 406 229 350 54 135 527 741 459 77 29 319 412 316 514 569 387 464 . Sensors 7825 | . . 348 131 . . . 26 416 3 479 145 185 383 139 178 . 331 229 350 54 135 527 741 459 77 29 319 363 316 514 561 387 . . IFF 2 | . . . . . . . . . . . . . . . . . . . . . . . . . . . . . . . . . 2 . Terrain 21 | . . . . . . . . . . . . . . . . . . . . . . . . . . . 19 . . 2 . . . . Structural 892 | . . . . . . . . . . . . . . . 5 1 . . . . . . . . . . . . . 354 372 159 1 . Seismic 709 | . . . . . . 516 193 . . . . . . . . . . . . . . . . . . . . . . . . . . . Machine Analysis 1890 | . . . . . . . . . . 277 145 188 386 139 184 182 389 . . . . . . . . . . . . . . . . . Cloaking 397 | . . . . . . . . . . . . . . . . . . . . . . . . . . . . . . . . . 397 . Jamming 4932 | . . . . . . . 1297 148 24 19 . . . . . . 2 209 350 51 85 457 515 . . . 211 160 205 226 454 58 461 . ECM 115 | . . . . . . . . . . . . . . . . . . . . . . . . . . . . . 115 . . . . . Robot Analysis Total 5 | . . . . . . . . . . . . . . . . . . . . 4 . . . . . . . . . . . 1 . . Derelict Logs Recovered 12 | . . 2 . 1 . . . . . . 1 2 2 1 . . . . 2 . 1 . . . . . . . . . . . . . Drone Launches . | . . . . . . . . . . . . . . . . . . . . . . . . . . . . . . . . . . . Drone Recoveries . | . . . . . . . . . . . . . . . . . . . . . . . . . . . . . . . . . . . Exploration | -11 -10 -10 -9 -9 -9 -8 -8 -8 -8 -7 -7 -7 -7 -6 -6 -6 -5 -5 -5 -5 -4 -4 -4 -4 -4 -4 -3 -3 -2 -2 -2 -1 -1 -1 ------------- Run | Yrd Mat Min Mat Min Exi Min Mat Sto Gar Fac Low Low Zio Pro Fac Gar Fac Upp Upp Zhi Pro Fac Ext Cet Arc Hub Res Qua Res Tes Sec Acc Com Ac0 Turns Passed 21949 | 96 782 362 1661 751 785 941 1596 416 744 488 145 188 386 139 184 182 406 229 350 54 135 527 741 459 77 29 319 412 316 514 630 477 6155 273 Spaces Moved 26901 | 69 387 301 719 515 541 546 694 160 335 1191 438 597 961 333 386 300 789 435 839 143 392 1048 853 489 112 85 626 912 898 832 1034 1136 6577 1228 Core 153 | 30 . . 1 . . . . . . . . . . . . . . . . . . . . . . . . . . . . . 122 . Treads 1306 | 38 306 . 67 . . . . . . . . . . . . . . . . . . . . . . . . . . . . . 895 . Legs . | . . . . . . . . . . . . . . . . . . . . . . . . . . . . . . . . . . . Wheels 3825 | 1 81 301 651 515 541 546 694 160 335 . . . . . . . . . . . . . . . . . . . . . . . . . Hover 1 | . . . . . . . . . . . . . . . . . . . . . . . . . . . 1 . . . . . . . Flight 21007 | . . . . . . . . . . 1191 438 597 961 333 386 300 789 435 839 143 392 1048 853 489 112 85 625 912 898 832 834 1030 5257 1228 Fastest Speed 7 | 50 105 105 105 140 140 140 140 140 135 28 28 28 28 28 27 27 21 29 29 29 27 26 18 25 27 31 27 28 25 14 11 11 16 7 Average Speed 55 | 111 148 105 165 140 140 142 159 155 149 28 28 28 28 28 27 29 25 29 29 29 27 26 25 26 27 31 31 29 25 21 22 20 68 18 Slowest Speed 1400 | 160 160 105 850 140 140 215 245 230 230 28 28 28 28 28 28 34 100 29 29 29 29 27 94 28 31 31 150 32 105 98 90 24 1400 35 Overloaded Moves 178 | . . . . . . . . . . . . . . . . . . . . . . . 3 . . . 25 . . 26 20 7 . 97 Propulsion Burnouts . | . . . . . . . . . . . . . . . . . . . . . . . . . . . . . . . . . . . Robots Hopped 94 | . . . . . . . . . . 1 . . . . 1 4 10 . . . . 2 3 . . 1 8 20 3 3 9 3 10 16 Potential Cave-ins 12 | . . . . . . . . . . . . . . 2 . . . 1 . . . . 8 . . . . . . . 1 . . . Cave-ins Triggered 1 | . . . . . . . . 1 . . . . . . . . . . . . . . . . . . . . . . . . . . Teleports 4 | . . . . . . . . . . . . . . . . . . . . . . . . . . . . 1 . . 1 . 1 1 Spacefolds 19 | . . . . . . . . . . . . . . . . . . . . . . . . . . . . . . . 16 1 2 . Microwarps 35 | . . . . . . . . . . . . . . . . . . . . . . . . . . . . . . . 11 5 19 . Exploration Rate (%) 52 | 5 72 59 51 98 91 89 62 35 44 30 57 68 82 40 9 34 21 49 80 60 51 30 66 74 80 8 21 76 19 57 58 32 83 62 Regions Visited 34 Branch Regions 22 Pre-discovered Areas 11 | . . . . 2 1 . . . . . 1 1 2 . . . . . 1 3 . . . . . . . . . . . . . . Known Exits Taken 25 | . . . 1 . . . 1 1 . 1 1 1 1 1 1 . 1 1 1 1 1 1 1 1 1 1 1 1 1 1 1 1 . . Unknown Exits Taken 7 | 1 1 1 . 1 1 1 . . . . . . . . . . . . . . . . . . . . . . . . . . 1 . Scrap Searched 23 | . . 1 . 1 . 1 . . . . 2 4 4 1 . . . 2 4 . 3 . . . . . . . . . . . . . Spaces Dug 220 | . . . 15 . . 13 4 3 . 12 . 4 . 2 3 2 9 2 4 . . 14 52 . . 1 13 2 9 20 5 15 13 3 Terrain Destroyed 618 | . 4 . 15 13 . 70 58 24 19 37 23 4 . 4 3 49 9 8 10 . . 14 129 . . 1 13 2 10 23 5 15 53 3 Melee 122 | . . . . . . . 1 2 . 12 . 4 . 1 2 2 9 1 4 . . 14 5 . . 1 13 2 8 13 2 15 8 3 Projectile 127 | . . . . . . . 50 6 . . . . . 3 1 . . 7 6 . . . . . . . . . 2 10 3 . 39 . AOE 363 | . 4 . 15 13 . 70 7 16 19 25 23 . . . . 47 . . . . . . 124 . . . . . . . . . . . Terrain Rammed . | . . . . . . . . . . . . . . . . . . . . . . . . . . . . . . . . . . . Walls Destroyed . | . . . . . . . . . . . . . . . . . . . . . . . . . . . . . . . . . . . Machines Disabled . | . . . . . . . . . . . . . . . . . . . . . . . . . . . . . . . . . . . Actions | -11 -10 -10 -9 -9 -9 -8 -8 -8 -8 -7 -7 -7 -7 -6 -6 -6 -5 -5 -5 -5 -4 -4 -4 -4 -4 -4 -3 -3 -2 -2 -2 -1 -1 -1 --------- Run | Yrd Mat Min Mat Min Exi Min Mat Sto Gar Fac Low Low Zio Pro Fac Gar Fac Upp Upp Zhi Pro Fac Ext Cet Arc Hub Res Qua Res Tes Sec Acc Com Ac0 Total 31998 | 82 492 329 980 532 568 680 954 250 470 1301 454 610 1079 373 458 366 966 523 931 152 416 1261 1313 807 155 84 717 1005 956 1107 1224 1232 7921 1250 Wait 3421 | . 40 7 48 5 6 103 41 1 25 39 13 . 107 36 54 11 137 72 78 . 22 164 278 283 39 . 59 28 4 203 306 109 1098 5 Move 26134 | 68 386 300 718 514 540 545 693 159 334 1188 437 596 960 332 384 291 769 434 838 142 391 1043 846 488 111 82 610 872 891 825 843 1029 6277 1198 Hop 84 | . . . . . . . . . . 1 . . . . 1 4 9 . . . . 2 3 . . 1 7 19 3 3 8 3 7 13 Pick Up 202 | 2 5 9 35 1 . 2 25 8 9 7 . 1 3 . 1 1 7 . 1 1 . 3 2 3 . . 4 6 3 4 9 9 39 2 Fast Attach 255 | 8 1 . 9 . . 2 9 4 2 9 . 4 3 . 3 4 12 1 . 3 1 4 10 7 . . 6 19 21 10 6 12 79 6 Attach 120 | . 1 1 7 . . 2 9 6 6 7 . 1 . . 2 5 3 1 . . . 3 7 1 1 . 3 3 1 4 9 5 30 2 Detach 112 | 2 . . . . . 1 . 2 1 1 . 1 . . 2 2 2 . . . . 3 8 . 1 . 2 8 2 8 7 7 51 1 Swap 133 | . 3 1 14 3 2 4 20 9 7 2 . . . . 2 2 1 . 1 1 2 3 9 4 1 . 2 8 1 2 6 3 18 2 Drop 319 | . . . 34 2 2 2 24 7 5 19 . 3 6 . 4 1 10 1 . 3 . 6 6 10 . . 7 17 16 10 6 17 96 5 Fire 692 | 2 56 11 115 7 1 18 128 50 74 3 3 . . 4 1 11 2 13 9 . . 10 29 11 . . . 4 2 13 4 . 111 . Melee 317 | . . . . . . . 4 4 . 25 1 4 . 1 4 3 14 1 4 2 . 19 27 . 2 1 17 21 12 25 20 31 59 16 Ram . | . . . . . . . . . . . . . . . . . . . . . . . . . . . . . . . . . . . Kick . | . . . . . . . . . . . . . . . . . . . . . . . . . . . . . . . . . . . Crush 3 | . . . . . . 1 1 . . . . . . . . . . . . . . . . . . . . . . . . . 1 . Escape Stasis 187 | . . . . . . . . . 7 . . . . . . 31 . . . . . . 88 . . . . . . . . 7 54 . Rewire 19 | . . . . . 17 . . . . . . . . . . . . . . . . 1 . . . . . . . . . . 1 . Trap . | . . . . . . . . . . . . . . . . . . . . . . . . . . . . . . . . . . . Miscellaneous . | . . . . . . . . . . . . . . . . . . . . . . . . . . . . . . . . . . . Route ------- -11/Scrapyard -10/Materials (discovered 4 exits: *Mat x2 / [*Min x2]) -10/Mines -9/Materials (discovered 2 exits: *Mat / *Min) -9/Mines (discovered 3 exits: *Mat x2 / *Exi) -9/Exiles -8/Mines (discovered 2 exits: *Mat x2) -8/Materials (discovered 3 exits: *Fac x2 / *Sto) -8/Storage -8/Garrison -7/Factory (discovered 4 exits: *Fac x2 / *Low x2) -7/Lower Caves -7/Lower Caves -7/Zion -6/Proximity Caves -6/Factory (discovered 3 exits: Low x2 / Gar) -6/Garrison -5/Factory (discovered 4 exits: *Fac x2 / *Upp x2) -5/Upper Caves -5/Upper Caves (discovered 2 exits: *Fac / *Zhi) -5/Zhirov -4/Proximity Caves -4/Factory (discovered 6 exits: *Res / Upp x2 / *Ext x2 / Arm) -4/Extension (discovered 2 exits: *Res / *Cet) -4/Cetus (discovered 2 exits: *Res / *Arc) -4/Archives (discovered 2 exits: *Hub x2) -4/Hub_04(d) (discovered 4 exits: *Res x4) -3/Research (discovered 5 exits: Res x3 / *Qua x2) -3/Quarantine -2/Research (discovered 3 exits: *Acc / *Tes x2) -2/Testing (discovered 3 exits: *Acc / *Sec / *Frg) -2/Section 7 -1/Access -1/Command (discovered 3 exits: [*Sur x2] / [*Ac0]) -1/Access_0 To Fleet Rendezvous History --------- Turn | Location | Event 8 | -11/Scrapyard | Discovered new exit (range 15) 97 | -11/Scrapyard | Entered Materials 307 | -10/Materials | Build established: Mutant 434 | -10/Materials | Discovered new exit (range 6) 504 | -10/Materials | Discovered new exit (range 16) 604 | -10/Materials | Discovered new exit (range 12) 811 | -10/Materials | Discovered new exit (range 16) 879 | -10/Materials | Entered Mines 880 | -10/Mines | Assembled infested the area 885 | -10/Mines | Met a Derelict bent on vengeance 937 | -10/Mines | Learned 2 Materials zone layouts 1026 | -10/Mines | Found DCF Scrap (13 items) 1047 | -10/Mines | Discovered new exit (range 5) 1241 | -10/Mines | Entered Materials 1241 | -9/Materials | Evolved 2 slots: Propulsion x1, Utility x1 1242 | -9/Materials | Identified exit to Mines 2269 | -9/Materials | Discovered new exit (range 16) 2768 | -9/Materials | Build established: Scavenger-Mutant 2902 | -9/Materials | Entered Mines 2909 | -9/Mines | Escorted by a lone wolf Derelict 2929 | -9/Mines | Learned location of Storage (-8) 2937 | -9/Mines | Learned Materials stockpile data 3086 | -9/Mines | Deemed a non-threat by the Exiles lab entrance 3087 | -9/Mines | Discovered new exit (range 5) 3225 | -9/Mines | Discovered new exit (range 8) 3239 | -9/Mines | Found a Scrap Suit stashed away for nefarious purposes 3571 | -9/Mines | Discovered new exit (range 8) 3653 | -9/Mines | Entered Exiles 3653 | -9/Exiles | Found Exiles lab destroyed 3653 | -9/Exiles | Accompanied by 1 ally 3998 | -9/Exiles | Learned location of Zion (-7) 4419 | -9/Exiles | Discovered new exit (range 14) 4438 | -9/Exiles | Entered Mines 4438 | -8/Mines | Accompanied by 3 allies 4520 | -8/Mines | Discovered new exit (range 7) 4551 | -8/Mines | Core integrity fell below 50% 4641 | -8/Mines | Lost 3 parts (1n1u1w) 5367 | -8/Mines | Discovered new exit (range 9) 5379 | -8/Mines | Entered Materials 5379 | -8/Materials | Evolved 2 slots: Propulsion x1, Utility x1 5380 | -8/Materials | Identified exit to Storage 5615 | -8/Materials | Lost 7 parts (2p3n1u1w) 5872 | -8/Materials | Discovered new exit (range 10) 6312 | -8/Materials | Destroyed 7 combat bots 6625 | -8/Materials | Discovered new exit (range 11) 6975 | -8/Materials | Entered Storage 7123 | -8/Storage | Crushed by falling debris 7123 | -8/Storage | Core integrity fell below 50% 7154 | -8/Storage | Lost 5 parts (3n2u) 7383 | -8/Storage | Identified exit to Garrison 7391 | -8/Storage | Entered Garrison 7421 | -8/Garrison | Triggered checkpoint 7473 | -8/Garrison | Core integrity fell below 20% 7489 | -8/Garrison | Lost 3 parts (1u2w) 7535 | -8/Garrison | Garrison Relay disabled 7590 | -8/Garrison | Garrison Relay disabled 7617 | -8/Garrison | System corruption reached 10% 7690 | -8/Garrison | Garrison Relay disabled 7777 | -8/Garrison | Triggered checkpoint 7895 | -8/Garrison | Triggered checkpoint 8082 | -8/Garrison | Discovered new exit (range 10) 8135 | -8/Garrison | Entered Factory 8135 | -7/Factory | Evolved 2 slots: Propulsion x1, Utility x1 8394 | -7/Factory | Discovered new exit (range 5) 8395 | -7/Factory | Identified exit to Factory 8420 | -7/Factory | Identified exit to Lower Caves 8547 | -7/Factory | Discovered exit to Factory (range 9) 8614 | -7/Factory | Build established: Hacker-Scout 8623 | -7/Factory | Entered Lower Caves 8629 | -7/Lower Caves | Met a Warlord Commander 8630 | -7/Lower Caves | Learned location of Warlord (-4) 8633 | -7/Lower Caves | Warlord Commander delivered Encrypted Comm Array 8659 | -7/Lower Caves | Encountered a Warlord checkpoint 8729 | -7/Lower Caves | Entered a destroyed Warlord outpost 8740 | -7/Lower Caves | Discovered new exit (range 5) 8741 | -7/Lower Caves | Identified exit to Lower Caves 8745 | -7/Lower Caves | Learned Factory stockpile data 8768 | -7/Lower Caves | Entered another Lower Caves area 8790 | -7/Lower Caves | Learned Factory non-interactive machine intel 8791 | -7/Lower Caves | Encountered a Warlord checkpoint 8828 | -7/Lower Caves | Learned location of Extension (-4) 8853 | -7/Lower Caves | Found Alien Artifact 8853 | -7/Lower Caves | Identified Core Expander 8853 | -7/Lower Caves | Installed Core Expander, added new Weapon slot 8895 | -7/Lower Caves | Discovered new exit (range 15) 8902 | -7/Lower Caves | Identified exit to Zion 8918 | -7/Lower Caves | Found DCF Scrap (11 items) 8956 | -7/Lower Caves | Entered Zion 8972 | -7/Zion | Found Relay Coupler [Programmer] 8975 | -7/Zion | Found Relay Coupler [Programmer] 9068 | -7/Zion | Learned location of 1 exit from Proximity Caves 9136 | -7/Zion | Gained Derelict followers 9213 | -7/Zion | Discovered new exit (range 13) 9235 | -7/Zion | Identified exit to Proximity Caves 9342 | -7/Zion | Entered Proximity Caves 9342 | -6/Proximity Caves | Accompanied by 4 allies 9464 | -6/Proximity Caves | Learned Factory interactive machine intel 9481 | -6/Proximity Caves | Entered Factory 9481 | -6/Factory | Evolved 2 slots: Utility x2 9483 | -6/Factory | Loaded intel: 216 non-interactive machine locations 9484 | -6/Factory | Loaded intel: 54 interactive machine locations 9527 | -6/Factory | Identified exit to Lower Caves 9631 | -6/Factory | Fabricated Cld. VTOL Module? 9665 | -6/Factory | Identified exit to Garrison 9665 | -6/Factory | Entered Garrison 9681 | -6/Garrison | Triggered checkpoint 9682 | -6/Garrison | Garrison Relay disabled 9817 | -6/Garrison | Discovered new exit (range 10) 9823 | -6/Garrison | Identified exit to Factory 9839 | -6/Garrison | Installed Relay Interface Framework 9847 | -6/Garrison | Entered Factory 9847 | -5/Factory | Evolved 2 slots: Power x1, Propulsion x1 9852 | -5/Factory | Lost 4 parts (2p1n1u) 10075 | -5/Factory | Identified exit to Upper Caves 10084 | -5/Factory | Discovered new exit (range 11) 10142 | -5/Factory | Spotted B-75 Beast 10205 | -5/Factory | Repaired Cld. VTOL Module 10231 | -5/Factory | Repaired Imp. Flight Unit 10236 | -5/Factory | Discovered new exit (range 15) 10253 | -5/Factory | Entered Upper Caves 10329 | -5/Upper Caves | Encountered a Warlord checkpoint 10464 | -5/Upper Caves | Discovered new exit (range 7) 10482 | -5/Upper Caves | Identified exit to Upper Caves 10482 | -5/Upper Caves | Entered another Upper Caves area 10487 | -5/Upper Caves | Learned 4 Factory zone layouts 10494 | -5/Upper Caves | Discovered new exit (range 15) 10522 | -5/Upper Caves | Build established: Hacker-Sprinter 10541 | -5/Upper Caves | Learned location of Armory (-4) 10818 | -5/Upper Caves | Discovered new exit (range 4) 10826 | -5/Upper Caves | Identified exit to Zhirov 10832 | -5/Upper Caves | Entered Zhirov 10832 | -5/Zhirov | Discovered new exit (range 3) 10843 | -5/Zhirov | Learned location of Quarantine (-3) 10843 | -5/Zhirov | Learned location of Testing (-2) 10843 | -5/Zhirov | Learned location of Command (-1) 10851 | -5/Zhirov | Found Alien Artifact 10851 | -5/Zhirov | Identified Integrated Dissipator 10851 | -5/Zhirov | Installed Integrated Dissipator, increased core heat dissipation (+20) 10858 | -5/Zhirov | Found Alien Artifact 10886 | -5/Zhirov | Identified exit to Proximity Caves 10886 | -5/Zhirov | Entered Proximity Caves 10981 | -4/Proximity Caves | Learned location of 1 exit from Research 11017 | -4/Proximity Caves | Discovered new exit (range 16) 11020 | -4/Proximity Caves | Attracted the attention of an 0b10 checkpoint 11021 | -4/Proximity Caves | Identified exit to Factory 11021 | -4/Proximity Caves | Entered Factory 11021 | -4/Factory | Evolved 2 slots: Utility x2 11118 | -4/Factory | Fabricated Cld. VTOL Module? 11231 | -4/Factory | Identified exit to Upper Caves 11231 | -4/Factory | Identified exit to Extension 11231 | -4/Factory | Identified exit to Armory 11398 | -4/Factory | Fabricated Cld. VTOL Module? 11432 | -4/Factory | Spotted B-86 Titan 11432 | -4/Factory | Discovered new exit (range 15) 11548 | -4/Factory | Entered Extension 11658 | -4/Extension | Rescued A7 11677 | -4/Extension | Lost 3 allies 11707 | -4/Extension | Rescued a captive Derelict 11739 | -4/Extension | Rescued a captive Derelict 11901 | -4/Extension | Rescued a captive Derelict 11978 | -4/Extension | Rescued a captive Derelict 11979 | -4/Extension | Rescued a captive Derelict 12016 | -4/Extension | Rescued a captive Derelict 12017 | -4/Extension | Rescued a captive Derelict 12129 | -4/Extension | Rescued a captive Derelict 12133 | -4/Extension | Rescued a captive Derelict 12210 | -4/Extension | Discovered new exit (range 10) 12210 | -4/Extension | Discovered new exit (range 6) 12217 | -4/Extension | Identified exit to Cetus 12279 | -4/Extension | Identified exit to Research 12289 | -4/Extension | Entered Cetus 12289 | -4/Cetus | Accompanied by 18 allies (A7) 12294 | -4/Cetus | Acquired a Cetus Manufacturing Module code from A7 12296 | -4/Cetus | Spotted Cetus Guard 12298 | -4/Cetus | Spotted Cetus Guard 12301 | -4/Cetus | Spotted Cetus Guard 12301 | -4/Cetus | Spotted Cetus Guard 12307 | -4/Cetus | Allies destroyed Cetus Guard 12314 | -4/Cetus | Allies destroyed Cetus Guard 12325 | -4/Cetus | Allies destroyed Cetus Guard 12330 | -4/Cetus | Allies destroyed Cetus Guard 12332 | -4/Cetus | Extracted ID and sensor layout for unrecognized location from A7's data core 12352 | -4/Cetus | Started Cetus Manufacturing Module 12358 | -4/Cetus | Lost 4 allies 12377 | -4/Cetus | Manufactured an Enhanced Grunt 12402 | -4/Cetus | Manufactured an Enhanced Grunt 12427 | -4/Cetus | Manufactured an Enhanced Grunt 12452 | -4/Cetus | Manufactured an Enhanced Grunt 12477 | -4/Cetus | Manufactured an Enhanced Grunt 12532 | -4/Cetus | Discovered new exit (range 15) 12558 | -4/Cetus | Spotted Cetus Guard 12559 | -4/Cetus | Spotted Cetus Guard 12570 | -4/Cetus | Spotted Cetus Guard 12570 | -4/Cetus | Spotted Cetus Guard 12579 | -4/Cetus | Allies destroyed Cetus Guard 12583 | -4/Cetus | Allies destroyed Cetus Guard 12590 | -4/Cetus | Allies destroyed Cetus Guard 12593 | -4/Cetus | Discovered exit to Research (range 16) 12597 | -4/Cetus | Met Revision 17 12598 | -4/Cetus | Allies destroyed Revision 17 12629 | -4/Cetus | Lost 5 allies 12671 | -4/Cetus | Identified exit to Archives 12748 | -4/Cetus | Entered Archives 12748 | -4/Archives | Accompanied by 15 allies 12753 | -4/Archives | Met Zhirov 12754 | -4/Archives | Unable to access archive contents 12759 | -4/Archives | Reinforcements dispatched to Archives 12760 | -4/Archives | Unable to access archive contents 12764 | -4/Archives | Read partially decrypted archive contents 12765 | -4/Archives | Discovered new exit (range 15) 12771 | -4/Archives | Discovered new exit (range 16) 12804 | -4/Archives | Reinforcements dispatched to Archives 12806 | -4/Archives | Zhirov warped through subspace 12810 | -4/Archives | Identified exit to Hub_04(d) 12824 | -4/Archives | Zhirov detonated Archives 12825 | -4/Archives | Entered Hub_04(d) 12841 | -4/Hub_04(d) | Network Hub disabled 12854 | -4/Hub_04(d) | Entered Research 12854 | -3/Research | Evolved 2 slots: Propulsion x1, Utility x1 12855 | -3/Research | Identified exit to Research 12855 | -3/Research | Lost 13 allies 12886 | -3/Research | Found Fusion Bomb Launcher 12926 | -3/Research | Build established: Wizard-Sprinter 13116 | -3/Research | Identified exit to Quarantine 13169 | -3/Research | Spotted B-86 Titan 13170 | -3/Research | Spotted B-90 Cyclops 13173 | -3/Research | Entered Quarantine 13180 | -3/Quarantine | Found Alien Artifact 13329 | -3/Quarantine | Repaired Cld. VTOL Module 13332 | -3/Quarantine | Adv. Hacking Suite fried by hacking feedback 13429 | -3/Quarantine | Identified Transdimensional Reconstructor 13429 | -3/Quarantine | Warped through subspace 13466 | -3/Quarantine | Build established: Hacker-Sprinter 13517 | -3/Quarantine | Found Alien Energy Cannon 13548 | -3/Quarantine | Found Alien Artifact 13548 | -3/Quarantine | Identified Core Reset Matrix 13548 | -3/Quarantine | Identified Core Cannon 13548 | -3/Quarantine | Identified Phase Redirector 13548 | -3/Quarantine | Used Core Reset Matrix 13552 | -3/Quarantine | Detected hypermatrix surge 13552 | -3/Quarantine | Sensed 6 artifacts in vicinity 13564 | -3/Quarantine | Found Sigix Broadsword 13568 | -3/Quarantine | Discovered exit to Research (range 15) 13585 | -3/Quarantine | Entered Research 13585 | -2/Research | Evolved 2 slots: Propulsion x1, Utility x1 13598 | -2/Research | Found Unknown Protection 13598 | -2/Research | Identified Hvy. Insulated Plating 13643 | -2/Research | Discovered new exit (range 11) 13646 | -2/Research | Identified exit to Access 13737 | -2/Research | Found Prototype Launcher 13749 | -2/Research | Found Prototype Hackware 13749 | -2/Research | Identified Exp. Hacking Suite 13780 | -2/Research | Identified exit to Testing 13901 | -2/Research | Entered Testing 13958 | -2/Testing | Build established: Wizard-Sprinter 14017 | -2/Testing | Fabricated Cld. Q-thruster (x1) 14025 | -2/Testing | Protovariant out of control (PL-LIVV5FCD0L) 14094 | -2/Testing | Found Prototype Energy Gun 14094 | -2/Testing | Identified Tachyon Dispersion Ray 14100 | -2/Testing | Spotted Striker 14189 | -2/Testing | Repaired Broken Imp. Diametric Drive 14192 | -2/Testing | Spotted PL-LIVV5FCD0L 14246 | -2/Testing | Found Prototype Device 14246 | -2/Testing | Identified AEGIS Remote Shield 14320 | -2/Testing | Build established: Wizard-Ninja 14399 | -2/Testing | Spotted Fortress 14412 | -2/Testing | Discovered new exit (range 6) 14412 | -2/Testing | Discovered new exit (range 6) 14413 | -2/Testing | Identified exit to Section 7 14414 | -2/Testing | Identified exit to Protoforge 14415 | -2/Testing | Entered Section 7 14416 | -2/Section 7 | Detected hypermatrix surge 14416 | -2/Section 7 | Sensed 27 artifacts in vicinity 14427 | -2/Section 7 | Found Spacefold Activator 14714 | -2/Section 7 | Build established: Hacker-Ninja 14772 | -2/Section 7 | Found Microwarp Drive 14806 | -2/Section 7 | Spotted S7 Guard 14809 | -2/Section 7 | Found Integrated Thermoelectric Network 14809 | -2/Section 7 | Installed Integrated Thermoelectric Network, gained heat-energy exchange potential 14839 | -2/Section 7 | Spotted Alpha 7 14841 | -2/Section 7 | Spotted B-99 Colossus 14886 | -2/Section 7 | Found LRC Storage 14886 | -2/Section 7 | Installed LRC Storage, increased inventory capacity (+2) 14889 | -2/Section 7 | Found LRC Storage 14889 | -2/Section 7 | Installed LRC Storage, increased inventory capacity (+2) 14891 | -2/Section 7 | Found LRC Insulator 14891 | -2/Section 7 | Installed LRC Insulator, 1 resistance modified: EM +25% 14912 | -2/Section 7 | Found Integrated Dissipator 14914 | -2/Section 7 | Installed Integrated Dissipator, increased core heat dissipation (+20) 14936 | -2/Section 7 | Found Transdimensional Reconstructor 14937 | -2/Section 7 | Found Transdimensional Reconstructor 14938 | -2/Section 7 | Found Transdimensional Reconstructor 14954 | -2/Section 7 | Spotted Striker 14954 | -2/Section 7 | Spotted Striker 14972 | -2/Section 7 | Spotted Striker 14972 | -2/Section 7 | Spotted Striker 14975 | -2/Section 7 | Found Sigix Shearcannon 14976 | -2/Section 7 | Warped through subspace 14977 | -2/Section 7 | Core integrity fell below 50% 15025 | -2/Section 7 | Spotted Executioner 15025 | -2/Section 7 | Spotted Executioner 15037 | -2/Section 7 | Found Integrated Dissipator 15037 | -2/Section 7 | Installed Integrated Dissipator, increased core heat dissipation (+20) 15043 | -2/Section 7 | Discovered exit to Access (range 7) 15045 | -2/Section 7 | Entered Access 15045 | -1/Access | Evolved 2 slots: Power x1, Weapon x1 15312 | -1/Access | Found Prototype Processor 15312 | -1/Access | Identified Exp. Core Analyzer 15357 | -1/Access | Identified exit to Command 15522 | -1/Access | Entered Command 15619 | -1/Command | Build established: Alien-Sprinter 15730 | -1/Command | Disengaged cave seal 15730 | -1/Command | Assembled emerged from the dark tunnel 15841 | -1/Command | Lost 7 allies 15916 | -1/Command | Disengaged cave seal 15916 | -1/Command | Assembled emerged from the dark tunnel 16002 | -1/Command | Lost 3 allies 16032 | -1/Command | Spotted M Guard 16032 | -1/Command | Spotted M Guard 16032 | -1/Command | Spotted Combat Programmer 16048 | -1/Command | Spotted Combat Programmer 16070 | -1/Command | System corruption reached 10% 16116 | -1/Command | Allies destroyed Combat Programmer 16121 | -1/Command | Allies destroyed Combat Programmer 16171 | -1/Command | Lost 17 allies 16272 | -1/Command | First assault squad dispatched 16285 | -1/Command | Core integrity fell below 50% 16440 | -1/Command | Build established: Alien-Tank 16467 | -1/Command | Destroyed M Guard 16493 | -1/Command | Destroyed M Guard 16493 | -1/Command | All MAIN.C guards destroyed 16669 | -1/Command | Met MAIN.C 16680 | -1/Command | 0b10 Conduit disabled 16706 | -1/Command | Destroyed MAIN.C Shell 16708 | -1/Command | MAIN.C activated Command garrisons 16752 | -1/Command | Destroyed MAIN.C 16764 | -1/Command | Discovered new exit (range 40) 16764 | -1/Command | Discovered new exit (range 86) 16764 | -1/Command | Extracted map data and part IDs from MAIN.C's data core 16768 | -1/Command | Found Centrium Heavy Armor Plating 16769 | -1/Command | Lost 4 parts (1p2u1w) 16771 | -1/Command | Found Exp. Powered Armor 16775 | -1/Command | Found Omega Cannon 16793 | -1/Command | Found Centrium Heavy Armor Plating 16803 | -1/Command | Found Singularity Reactor 16823 | -1/Command | Found Hpw. Disruptor Cannon 16952 | -1/Command | Emitted hypermatrix ping 16957 | -1/Command | Assembled emerged from beneath the floor 17023 | -1/Command | Found Cld. Nova Cannon 17501 | -1/Command | Found Exp. System Purifier 17917 | -1/Command | Found Zero-point Reactor 17919 | -1/Command | Found Vortex Chain Reactor 18534 | -1/Command | Build established: Alien-Mutant 20438 | -1/Command | Assembled emerged from beneath the floor 20570 | -1/Command | Assembled emerged from beneath the floor 20813 | -1/Command | Build established: Alien-Sprinter 21204 | -1/Command | Found Exp. Core Analyzer 21335 | -1/Command | Found Exp. Core Analyzer 21336 | -1/Command | Found Exp. Core Analyzer 21388 | -1/Command | Found Femtoactuators 21461 | -1/Command | Found Exp. Melee Analysis Suite 21641 | -1/Command | Build established: Scavenger-Sprinter 21674 | -1/Command | Warped through subspace to slip node 21674 | -1/Command | Discovered new exit (range 4) 21677 | -1/Command | Entered Access_0 21678 | -1/Access_0 | Sensed 4 artifacts in vicinity 21678 | -1/Access_0 | Met Architect 21699 | -1/Access_0 | Subspace Access Node disabled 21708 | -1/Access_0 | A6 warped into view 21722 | -1/Access_0 | Found Sigix Broadsword 21730 | -1/Access_0 | Subspace Access Node disabled 21750 | -1/Access_0 | A5 warped into view 21757 | -1/Access_0 | Found Core Regenerator 21757 | -1/Access_0 | Used Core Regenerator, restored core integrity (+400) 21789 | -1/Access_0 | Found Core Expander 21816 | -1/Access_0 | A4 warped into view 21863 | -1/Access_0 | Subspace Access Node disabled 21879 | -1/Access_0 | Lost 3 parts (1n1u1w) 21921 | -1/Access_0 | Subspace Access Node disabled 21947 | -1/Access_0 | Warped through subspace to slip node 21947 | -1/Access_0 | Discovered new exit (range 8) 21950 | *** | Heading to fleet! Last Messages --------------- 21848_ Sigix Broadsword destroyed. 21858_ HV Slug penetrates Wall. 21863_ Subspace Access Node disabled. 21892_ Acquired Lance. 21921_ Subspace Access Node disabled. 21937_ Lance follow-up attack on A2. 21937_ A2 suffers critical hit (Impale). 21939_ Lance follow-up attack on A2. 21939_ A2 suffers critical hit (Impale). 21940_ Adv. Phase Shifter destroyed. 21942_ Quantum Shear penetrates Wall. 21943_ Adv. Surge Thruster destroyed. 21944_ A6 follow-up attacks with Enh. Force Lance. 21944_ Lgt. Quantum Reactor destroyed. 21944_ Penetrated by Quantum Shear. 21946_ Adv. Surge Thruster destroyed. 21947_ Warped through subspace, drawn to slip node. 21947_ EXIT=FOUND 21947_ A0_RES: I have more important things to do than play hide-and-seek. Deal with this piece of junk if it returns. Map ----- +----------------------------------------------------+ | | | | | | | | | | | | | | | | | | | | | | | | | | | | | | | | | ?????????????????????????????????????????????????? | | ?????????????????????????????????????????????????? | | ?????????????????????????????????????????????????? | | ?????????????????????????????????????????????????? | | ?????????????????????????????????????????????????? | | ?????????????????????????????????????????????????? | | ????????????????????????###??????????????????????? | | ???????????????????????## ##?????????????????????? | | ???????????????????????# #?????????????????????? | | ???????????????????????# @ #?????????????????????? | | ??????????????????????## #?????????????????????? | | ??????????????????????# #?????????????????????? | | ??????????????????????# ##?????????????????????? | | ??????????????????????## #?????????????????????? | | ??????????????????????# #?????????????????????? | | ??????????????????????# ##?????????????????????? | | ??????????????????????# < #?????????????????????? | | ??????????????????????# ##?????????????????????? | | ??????????????????????## #??????????????????????? | | ???????????????????????####??????????????????????? | | ?????????????????????????????????????????????????? | | ?????????????????????????????????????????????????? | | ?????????????????????????????????????????????????? | | ?????????????????????????????????????????????????? | | ?????????????????????????????????????????????????? | | ?????????????????????????????????????????????????? | | ?????????????????????????????????????????????????? | | ?????????????????????????????????????????????????? | | ?????????????????????????????????????????????????? | | ?????????????????????????????????????????????????? | | ?????????????????????????????????????????????????? | | ?????????????????????????????????????????????????? | | ?????????????????????????????????????????????????? | | ?????????????????????????????????????????????????? | +----------------------------------------------------+ Best States ------------- Heat Dissipation 131 Energy Generation 95 Energy Capacity 1100 Matter Stores 300 Matter Capacity 300 Sight Range 16 Robot Scan Range 16 Terrain Scan Range 20 Terrain Scan Density 10 ECM Strength 1 Jamming Range 16 Cloak Strength 2 Power Amplification 80 Additional Mass Support 25 Armor Coverage 2100 Resistance: KI 20 Resistance: TH 30 Resistance: EM 25 Core Shielding 20 Weapon Shielding 66 Point Defense Rating 240 Melee Speed Boost 50 Phase Shifting 15 Evasion (%) 93 Targeting Accuracy 14 Melee Accuracy 20 Core Analysis 12 Recoil Reduction 8 Offensive Hacking 64 Defensive Hacking 28 Relay Coupler Types 2 Relay Coupler Value 68 Item Schematics ----------------- None Robot Schematics ------------------ None Fabricated ------------ Cld. VTOL Module | x1 | -6/Factory Cld. VTOL Module | x1 | -4/Factory Cld. VTOL Module | x1 | -4/Factory Cld. Q-thruster | x1 | -2/Testing | Preloaded Repaired ---------- Cld. VTOL Module | 43% | -5/Factory Imp. Flight Unit | 55% | -5/Factory Cld. VTOL Module | 18% | -3/Quarantine Imp. Diametric Drive | 99% | -2/Testing | Broken Alien Tech Used ----------------- Core Expander Integrated Dissipator Transdimensional Reconstructor Core Reset Matrix Phase Redirector Sigix Broadsword Spacefold Activator Microwarp Drive Integrated Thermoelectric Network LRC Storage LRC Insulator Sigix Shearcannon Core Regenerator Achievements -------------- Behind The Curtain Challenges ------------ None Game ------ Seed PartitionMiningCompactor Manual? 0 Play Time 06:35:21 Cumulative 115.7 hours Start 2025.07.03 @ 18:54:56 End 2025.07.05 @ 19:20:04 Sessions 6 Manual Loads 0 Difficulty Rogue Special Mode None Game No. 70 Rogue 70 Adventurer 0 Explorer 0 Win Type 2 Total 11 Types 2/1/4/1/1/0/0/1/0/1 Lore% 65 Gallery% 61 Achievement% 60 Wizard Run 0 Options --------- Layout 0 ASCII 0 Keyboard 1 Movement Vi Keybinds 0 Fullscreen 2 Font 18/SmallcapsGlow Map View 76x50 Zoom Use 0% Tactical HUD 1 Map Filters NONE Filters NONE Steam 1 RUN: 71996568-5231-4aba-82ad-707ae5572646